Workbook

Sheet 有形固定資産（自動集計）【千円単位】
A1: 【様式第５号】
A2: 連結附属明細書
A3: １．連結貸借対照表の内容に関する明細
A4: ※下記以外の資産及び負債のうち、その額が資産総額の100分の5を超える科目についても作成する。
A5: （１）資産項目の明細
B7: ①有形固定資産の明細 | J7: （単位： 千円）
B8: 区分 | D8: 前年度末残高 （A） | E8: 本年度増加額 （B） | F8: 本年度減少額 （C） | G8: 本年度末残高 （A)＋（B)-（C) （D） | H8: 本年度末 減価償却累計額 （E) | I8: 本年度償却額 （F) | J8: 差引本年度末残高 （D)－（E) （G)
B9: 事業用資産 | D9: =ROUND('有形固定資産（自動集計）【円単位】'!D9:D9/1000,0) -> 5579752 | E9: =ROUND('有形固定資産（自動集計）【円単位】'!E9:E9/1000,0) -> 543661 | F9: =ROUND('有形固定資産（自動集計）【円単位】'!F9:F9/1000,0) -> 144860 | G9: =ROUND('有形固定資産（自動集計）【円単位】'!G9:G9/1000,0) -> 5978553 | H9: =ROUND('有形固定資産（自動集計）【円単位】'!H9:H9/1000,0) -> 3334567 | I9: =ROUND('有形固定資産（自動集計）【円単位】'!I9:I9/1000,0) -> 129272 | J9: =ROUND('有形固定資産（自動集計）【円単位】'!J9:J9/1000,0) -> 2643986
B10: 土地 | D10: =ROUND('有形固定資産（自動集計）【円単位】'!D10:D10/1000,0) -> 130396 | E10: =ROUND('有形固定資産（自動集計）【円単位】'!E10:E10/1000,0) -> 2549 | F10: =ROUND('有形固定資産（自動集計）【円単位】'!F10:F10/1000,0) -> 0 | G10: =ROUND('有形固定資産（自動集計）【円単位】'!G10:G10/1000,0) -> 132945 | H10: =ROUND('有形固定資産（自動集計）【円単位】'!H10:H10/1000,0) -> 0 | I10: =ROUND('有形固定資産（自動集計）【円単位】'!I10:I10/1000,0) -> 0 | J10: =ROUND('有形固定資産（自動集計）【円単位】'!J10:J10/1000,0) -> 132945
B11: 立木竹 | D11: =ROUND('有形固定資産（自動集計）【円単位】'!D11:D11/1000,0) -> 0 | E11: =ROUND('有形固定資産（自動集計）【円単位】'!E11:E11/1000,0) -> 0 | F11: =ROUND('有形固定資産（自動集計）【円単位】'!F11:F11/1000,0) -> 0 | G11: =ROUND('有形固定資産（自動集計）【円単位】'!G11:G11/1000,0) -> 0 | H11: =ROUND('有形固定資産（自動集計）【円単位】'!H11:H11/1000,0) -> 0 | I11: =ROUND('有形固定資産（自動集計）【円単位】'!I11:I11/1000,0) -> 0 | J11: =ROUND('有形固定資産（自動集計）【円単位】'!J11:J11/1000,0) -> 0
B12: 建物 | D12: =ROUND('有形固定資産（自動集計）【円単位】'!D12:D12/1000,0) -> 4509887 | E12: =ROUND('有形固定資産（自動集計）【円単位】'!E12:E12/1000,0) -> 463609 | F12: =ROUND('有形固定資産（自動集計）【円単位】'!F12:F12/1000,0) -> 0 | G12: =ROUND('有形固定資産（自動集計）【円単位】'!G12:G12/1000,0) -> 4973496 | H12: =ROUND('有形固定資産（自動集計）【円単位】'!H12:H12/1000,0) -> 2808476 | I12: =ROUND('有形固定資産（自動集計）【円単位】'!I12:I12/1000,0) -> 93972 | J12: =ROUND('有形固定資産（自動集計）【円単位】'!J12:J12/1000,0) -> 2165020
B13: 工作物 | D13: =ROUND('有形固定資産（自動集計）【円単位】'!D13:D13/1000,0) -> 453192 | E13: =ROUND('有形固定資産（自動集計）【円単位】'!E13:E13/1000,0) -> 66396 | F13: =ROUND('有形固定資産（自動集計）【円単位】'!F13:F13/1000,0) -> 0 | G13: =ROUND('有形固定資産（自動集計）【円単位】'!G13:G13/1000,0) -> 519588 | H13: =ROUND('有形固定資産（自動集計）【円単位】'!H13:H13/1000,0) -> 212781 | I13: =ROUND('有形固定資産（自動集計）【円単位】'!I13:I13/1000,0) -> 20113 | J13: =ROUND('有形固定資産（自動集計）【円単位】'!J13:J13/1000,0) -> 306807
B14: 船舶 | D14: =ROUND('有形固定資産（自動集計）【円単位】'!D14:D14/1000,0) -> 329318 | E14: =ROUND('有形固定資産（自動集計）【円単位】'!E14:E14/1000,0) -> 8580 | F14: =ROUND('有形固定資産（自動集計）【円単位】'!F14:F14/1000,0) -> 0 | G14: =ROUND('有形固定資産（自動集計）【円単位】'!G14:G14/1000,0) -> 337898 | H14: =ROUND('有形固定資産（自動集計）【円単位】'!H14:H14/1000,0) -> 313309 | I14: =ROUND('有形固定資産（自動集計）【円単位】'!I14:I14/1000,0) -> 15188 | J14: =ROUND('有形固定資産（自動集計）【円単位】'!J14:J14/1000,0) -> 24588
B15: 浮標等 | D15: =ROUND('有形固定資産（自動集計）【円単位】'!D15:D15/1000,0) -> 0 | E15: =ROUND('有形固定資産（自動集計）【円単位】'!E15:E15/1000,0) -> 0 | F15: =ROUND('有形固定資産（自動集計）【円単位】'!F15:F15/1000,0) -> 0 | G15: =ROUND('有形固定資産（自動集計）【円単位】'!G15:G15/1000,0) -> 0 | H15: =ROUND('有形固定資産（自動集計）【円単位】'!H15:H15/1000,0) -> 0 | I15: =ROUND('有形固定資産（自動集計）【円単位】'!I15:I15/1000,0) -> 0 | J15: =ROUND('有形固定資産（自動集計）【円単位】'!J15:J15/1000,0) -> 0
B16: 航空機 | D16: =ROUND('有形固定資産（自動集計）【円単位】'!D16:D16/1000,0) -> 0 | E16: =ROUND('有形固定資産（自動集計）【円単位】'!E16:E16/1000,0) -> 0 | F16: =ROUND('有形固定資産（自動集計）【円単位】'!F16:F16/1000,0) -> 0 | G16: =ROUND('有形固定資産（自動集計）【円単位】'!G16:G16/1000,0) -> 0 | H16: =ROUND('有形固定資産（自動集計）【円単位】'!H16:H16/1000,0) -> 0 | I16: =ROUND('有形固定資産（自動集計）【円単位】'!I16:I16/1000,0) -> 0 | J16: =ROUND('有形固定資産（自動集計）【円単位】'!J16:J16/1000,0) -> 0
B17: その他 | D17: =ROUND('有形固定資産（自動集計）【円単位】'!D17:D17/1000,0) -> 0 | E17: =ROUND('有形固定資産（自動集計）【円単位】'!E17:E17/1000,0) -> 0 | F17: =ROUND('有形固定資産（自動集計）【円単位】'!F17:F17/1000,0) -> 0 | G17: =ROUND('有形固定資産（自動集計）【円単位】'!G17:G17/1000,0) -> 0 | H17: =ROUND('有形固定資産（自動集計）【円単位】'!H17:H17/1000,0) -> 0 | I17: =ROUND('有形固定資産（自動集計）【円単位】'!I17:I17/1000,0) -> 0 | J17: =ROUND('有形固定資産（自動集計）【円単位】'!J17:J17/1000,0) -> 0
B18: 建設仮勘定 | D18: =ROUND('有形固定資産（自動集計）【円単位】'!D18:D18/1000,0) -> 156960 | E18: =ROUND('有形固定資産（自動集計）【円単位】'!E18:E18/1000,0) -> 2527 | F18: =ROUND('有形固定資産（自動集計）【円単位】'!F18:F18/1000,0) -> 144860 | G18: =ROUND('有形固定資産（自動集計）【円単位】'!G18:G18/1000,0) -> 14627 | H18: =ROUND('有形固定資産（自動集計）【円単位】'!H18:H18/1000,0) -> 0 | I18: =ROUND('有形固定資産（自動集計）【円単位】'!I18:I18/1000,0) -> 0 | J18: =ROUND('有形固定資産（自動集計）【円単位】'!J18:J18/1000,0) -> 14627
B19: インフラ資産 | D19: =ROUND('有形固定資産（自動集計）【円単位】'!D19:D19/1000,0) -> 10164973 | E19: =ROUND('有形固定資産（自動集計）【円単位】'!E19:E19/1000,0) -> 181082 | F19: =ROUND('有形固定資産（自動集計）【円単位】'!F19:F19/1000,0) -> 10445 | G19: =ROUND('有形固定資産（自動集計）【円単位】'!G19:G19/1000,0) -> 10335611 | H19: =ROUND('有形固定資産（自動集計）【円単位】'!H19:H19/1000,0) -> 5970713 | I19: =ROUND('有形固定資産（自動集計）【円単位】'!I19:I19/1000,0) -> 260036 | J19: =ROUND('有形固定資産（自動集計）【円単位】'!J19:J19/1000,0) -> 4364897
B20: 土地 | D20: =ROUND('有形固定資産（自動集計）【円単位】'!D20:D20/1000,0) -> 57710 | E20: =ROUND('有形固定資産（自動集計）【円単位】'!E20:E20/1000,0) -> 0 | F20: =ROUND('有形固定資産（自動集計）【円単位】'!F20:F20/1000,0) -> 600 | G20: =ROUND('有形固定資産（自動集計）【円単位】'!G20:G20/1000,0) -> 57110 | H20: =ROUND('有形固定資産（自動集計）【円単位】'!H20:H20/1000,0) -> 0 | I20: =ROUND('有形固定資産（自動集計）【円単位】'!I20:I20/1000,0) -> 0 | J20: =ROUND('有形固定資産（自動集計）【円単位】'!J20:J20/1000,0) -> 57110
B21: 建物 | D21: =ROUND('有形固定資産（自動集計）【円単位】'!D21:D21/1000,0) -> 313395 | E21: =ROUND('有形固定資産（自動集計）【円単位】'!E21:E21/1000,0) -> 0 | F21: =ROUND('有形固定資産（自動集計）【円単位】'!F21:F21/1000,0) -> 0 | G21: =ROUND('有形固定資産（自動集計）【円単位】'!G21:G21/1000,0) -> 313395 | H21: =ROUND('有形固定資産（自動集計）【円単位】'!H21:H21/1000,0) -> 104264 | I21: =ROUND('有形固定資産（自動集計）【円単位】'!I21:I21/1000,0) -> 12042 | J21: =ROUND('有形固定資産（自動集計）【円単位】'!J21:J21/1000,0) -> 209131
B22: 工作物 | D22: =ROUND('有形固定資産（自動集計）【円単位】'!D22:D22/1000,0) -> 9784023 | E22: =ROUND('有形固定資産（自動集計）【円単位】'!E22:E22/1000,0) -> 181082 | F22: =ROUND('有形固定資産（自動集計）【円単位】'!F22:F22/1000,0) -> 0 | G22: =ROUND('有形固定資産（自動集計）【円単位】'!G22:G22/1000,0) -> 9965106 | H22: =ROUND('有形固定資産（自動集計）【円単位】'!H22:H22/1000,0) -> 5866449 | I22: =ROUND('有形固定資産（自動集計）【円単位】'!I22:I22/1000,0) -> 247994 | J22: =ROUND('有形固定資産（自動集計）【円単位】'!J22:J22/1000,0) -> 4098656
B23: その他 | D23: =ROUND('有形固定資産（自動集計）【円単位】'!D23:D23/1000,0) -> 0 | E23: =ROUND('有形固定資産（自動集計）【円単位】'!E23:E23/1000,0) -> 0 | F23: =ROUND('有形固定資産（自動集計）【円単位】'!F23:F23/1000,0) -> 0 | G23: =ROUND('有形固定資産（自動集計）【円単位】'!G23:G23/1000,0) -> 0 | H23: =ROUND('有形固定資産（自動集計）【円単位】'!H23:H23/1000,0) -> 0 | I23: =ROUND('有形固定資産（自動集計）【円単位】'!I23:I23/1000,0) -> 0 | J23: =ROUND('有形固定資産（自動集計）【円単位】'!J23:J23/1000,0) -> 0
B24: 建設仮勘定 | D24: =ROUND('有形固定資産（自動集計）【円単位】'!D24:D24/1000,0) -> 9845 | E24: =ROUND('有形固定資産（自動集計）【円単位】'!E24:E24/1000,0) -> 0 | F24: =ROUND('有形固定資産（自動集計）【円単位】'!F24:F24/1000,0) -> 9845 | G24: =ROUND('有形固定資産（自動集計）【円単位】'!G24:G24/1000,0) -> 0 | H24: =ROUND('有形固定資産（自動集計）【円単位】'!H24:H24/1000,0) -> 0 | I24: =ROUND('有形固定資産（自動集計）【円単位】'!I24:I24/1000,0) -> 0 | J24: =ROUND('有形固定資産（自動集計）【円単位】'!J24:J24/1000,0) -> 0
B25: 物品 | D25: =ROUND('有形固定資産（自動集計）【円単位】'!D25:D25/1000,0) -> 870827 | E25: =ROUND('有形固定資産（自動集計）【円単位】'!E25:E25/1000,0) -> 47226 | F25: =ROUND('有形固定資産（自動集計）【円単位】'!F25:F25/1000,0) -> 4556 | G25: =ROUND('有形固定資産（自動集計）【円単位】'!G25:G25/1000,0) -> 913497 | H25: =ROUND('有形固定資産（自動集計）【円単位】'!H25:H25/1000,0) -> 631215 | I25: =ROUND('有形固定資産（自動集計）【円単位】'!I25:I25/1000,0) -> 75072 | J25: =ROUND('有形固定資産（自動集計）【円単位】'!J25:J25/1000,0) -> 282282
B26: 合計 | D26: =ROUND('有形固定資産（自動集計）【円単位】'!D26:D26/1000,0) -> 16615553 | E26: =ROUND('有形固定資産（自動集計）【円単位】'!E26:E26/1000,0) -> 771969 | F26: =ROUND('有形固定資産（自動集計）【円単位】'!F26:F26/1000,0) -> 159861 | G26: =ROUND('有形固定資産（自動集計）【円単位】'!G26:G26/1000,0) -> 17227661 | H26: =ROUND('有形固定資産（自動集計）【円単位】'!H26:H26/1000,0) -> 9936495 | I26: =ROUND('有形固定資産（自動集計）【円単位】'!I26:I26/1000,0) -> 464381 | J26: =ROUND('有形固定資産（自動集計）【円単位】'!J26:J26/1000,0) -> 7291166

Sheet 有形固定資産（自動集計）【円単位】
A1: 【様式第５号】
A2: 連結附属明細書
A3: １．連結貸借対照表の内容に関する明細
A4: ※下記以外の資産及び負債のうち、その額が資産総額の100分の5を超える科目についても作成する。
A5: （１）資産項目の明細 | L5: ↓昨年度の附属明細書を見て入力する
B7: ①有形固定資産の明細 | J7: （単位： 円） | L7: ↓ | M7: ↓集計用タブより自動集計される
B8: 区分 | D8: 前年度末残高 （A） | E8: 本年度増加額 （B） | F8: 本年度減少額 （C） | G8: 本年度末残高 （A)＋（B)-（C) （D） | H8: 本年度末 減価償却累計額 （E) | I8: 本年度償却額 （F) | J8: 差引本年度末残高 （D)－（E) （G) | L8: 本年度末残高 （A)＋（B)-（C) （D） | M8: 前年度末残高 （A）
B9: 事業用資産 | D9: =SUM(D10:D18) -> 5579751980 | E9: 543660685 | F9: 144859583 | G9: 5978553082 | H9: 3334566616 | I9: 129272070 | J9: 2643986466 | L9: =SUM(L10:L18) -> 5579751980 | M9: =SUM(M10:M18) -> 5579751980 | N9: 調整額
B10: 土地 | D10: =L10 -> 130396113 | E10: =集計用!AR33+全体会計の値を張り付け!E10+IF(N10>0,N10,0) -> 2548528 | F10: =集計用!AR55+全体会計の値を張り付け!F10+IF(N10<0,N10*-1,0) -> 0 | G10: =D10+E10-F10 -> 132944641 | H10: 0 | I10: 0 | J10: =G10-H10 -> 132944641 | L10: 130396113 | M10: =集計用!AR11+全体会計の値を張り付け!D10 -> 130396113 | N10: =M10-L10 -> 0
B11: 立木竹 | D11: 0 | E11: =集計用!AR34+全体会計の値を張り付け!E11+IF(N11>0,N11,0) -> 0 | F11: =集計用!AR56+全体会計の値を張り付け!F11+IF(N11<0,N11*-1,0) -> 0 | G11: 0 | H11: 0 | I11: 0 | J11: 0 | L11: 0 | M11: =集計用!AR12+全体会計の値を張り付け!D11 -> 0 | N11: =M11-L11 -> 0
B12: 建物 | D12: 4509886714 | E12: =集計用!AR35+全体会計の値を張り付け!E12+IF(N12>0,N12,0) -> 463609439 | F12: =集計用!AR57+全体会計の値を張り付け!F12+IF(N12<0,N12*-1,0) -> 0 | G12: 4973496153 | H12: =集計用!AR101+全体会計の値を張り付け!H12 -> 2808476148 | I12: =集計用!AR123+全体会計の値を張り付け!I12 -> 93971689 | J12: 2165020005 | L12: 4509886714 | M12: =集計用!AR13+全体会計の値を張り付け!D12 -> 4509886714 | N12: 0
B13: 工作物 | D13: 453192020 | E13: =集計用!AR36+全体会計の値を張り付け!E13+IF(N13>0,N13,0) -> 66396018 | F13: =集計用!AR58+全体会計の値を張り付け!F13+IF(N13<0,N13*-1,0) -> 0 | G13: 519588038 | H13: =集計用!AR102+全体会計の値を張り付け!H13 -> 212781118 | I13: =集計用!AR124+全体会計の値を張り付け!I13 -> 20112530 | J13: 306806920 | L13: 453192020 | M13: =集計用!AR14+全体会計の値を張り付け!D13 -> 453192020 | N13: 0
B14: 船舶 | D14: 329317550 | E14: =集計用!AR37+全体会計の値を張り付け!E14+IF(N14>0,N14,0) -> 8580000 | F14: =集計用!AR59+全体会計の値を張り付け!F14+IF(N14<0,N14*-1,0) -> 0 | G14: 337897550 | H14: =集計用!AR103+全体会計の値を張り付け!H14 -> 313309350 | I14: =集計用!AR125+全体会計の値を張り付け!I14 -> 15187851 | J14: 24588200 | L14: 329317550 | M14: =集計用!AR15+全体会計の値を張り付け!D14 -> 329317550 | N14: 0
B15: 浮標等 | D15: 0 | E15: =集計用!AR38+全体会計の値を張り付け!E15+IF(N15>0,N15,0) -> 0 | F15: =集計用!AR60+全体会計の値を張り付け!F15+IF(N15<0,N15*-1,0) -> 0 | G15: 0 | H15: =集計用!AR104+全体会計の値を張り付け!H15 -> 0 | I15: =集計用!AR126+全体会計の値を張り付け!I15 -> 0 | J15: 0 | L15: 0 | M15: =集計用!AR16+全体会計の値を張り付け!D15 -> 0 | N15: 0
B16: 航空機 | D16: 0 | E16: =集計用!AR39+全体会計の値を張り付け!E16+IF(N16>0,N16,0) -> 0 | F16: =集計用!AR61+全体会計の値を張り付け!F16+IF(N16<0,N16*-1,0) -> 0 | G16: 0 | H16: =集計用!AR105+全体会計の値を張り付け!H16 -> 0 | I16: =集計用!AR127+全体会計の値を張り付け!I16 -> 0 | J16: 0 | L16: 0 | M16: =集計用!AR17+全体会計の値を張り付け!D16 -> 0 | N16: 0
B17: その他 | D17: 0 | E17: =集計用!AR40+全体会計の値を張り付け!E17+IF(N17>0,N17,0) -> 0 | F17: =集計用!AR62+全体会計の値を張り付け!F17+IF(N17<0,N17*-1,0) -> 0 | G17: 0 | H17: =集計用!AR106+全体会計の値を張り付け!H17 -> 0 | I17: =集計用!AR128+全体会計の値を張り付け!I17 -> 0 | J17: 0 | L17: 0 | M17: =集計用!AR18+全体会計の値を張り付け!D17 -> 0 | N17: 0
B18: 建設仮勘定 | D18: 156959583 | E18: =集計用!AR41+全体会計の値を張り付け!E18+IF(N18>0,N18,0) -> 2526700 | F18: =集計用!AR63+全体会計の値を張り付け!F18+IF(N18<0,N18*-1,0) -> 144859583 | G18: 14626700 | H18: 0 | I18: 0 | J18: 14626700 | L18: 156959583 | M18: =集計用!AR19+全体会計の値を張り付け!D18 -> 156959583 | N18: 0
B19: インフラ資産 | D19: =SUM(D20:D24) -> 10164973216 | E19: 181082439 | F19: 10445058 | G19: 10335610597 | H19: 5970713224 | I19: 260036369 | J19: 4364897373 | L19: =SUM(L20:L25) -> 11035800604 | M19: =SUM(M20:M25) -> 11035800604
B20: 土地 | D20: =L20 -> 57710154 | E20: =集計用!AR43+全体会計の値を張り付け!E20+IF(N20>0,N20,0) -> 0 | F20: =集計用!AR65+全体会計の値を張り付け!F20+IF(N20<0,N20*-1,0) -> 600058 | G20: =D20+E20-F20 -> 57110096 | H20: 0 | I20: 0 | J20: =G20-H20 -> 57110096 | L20: 57710154 | M20: =集計用!AR21+全体会計の値を張り付け!D20 -> 57710154 | N20: 0
B21: 建物 | D21: 313394767 | E21: =集計用!AR44+全体会計の値を張り付け!E21+IF(N21>0,N21,0) -> 0 | F21: =集計用!AR66+全体会計の値を張り付け!F21+IF(N21<0,N21*-1,0) -> 0 | G21: 313394767 | H21: =集計用!AR110+全体会計の値を張り付け!H21 -> 104263749 | I21: =集計用!AR132+全体会計の値を張り付け!I21 -> 12042339 | J21: 209131018 | L21: 313394767 | M21: =集計用!AR22+全体会計の値を張り付け!D21 -> 313394767 | N21: 0
B22: 工作物 | D22: 9784023295 | E22: =集計用!AR45+全体会計の値を張り付け!E22+IF(N22>0,N22,0) -> 181082439 | F22: =集計用!AR67+全体会計の値を張り付け!F22+IF(N22<0,N22*-1,0) -> 0 | G22: 9965105734 | H22: =集計用!AR111+全体会計の値を張り付け!H22 -> 5866449475 | I22: =集計用!AR133+全体会計の値を張り付け!I22 -> 247994030 | J22: 4098656259 | L22: 9784023295 | M22: =集計用!AR23+全体会計の値を張り付け!D22 -> 9784023295 | N22: 0
B23: その他 | D23: 0 | E23: =集計用!AR46+全体会計の値を張り付け!E23+IF(N23>0,N23,0) -> 0 | F23: =集計用!AR68+全体会計の値を張り付け!F23+IF(N23<0,N23*-1,0) -> 0 | G23: 0 | H23: =集計用!AR112+全体会計の値を張り付け!H23 -> 0 | I23: =集計用!AR134+全体会計の値を張り付け!I23 -> 0 | J23: 0 | L23: 0 | M23: =集計用!AR24+全体会計の値を張り付け!D23 -> 0 | N23: 0
B24: 建設仮勘定 | D24: 9845000 | E24: =集計用!AR47+全体会計の値を張り付け!E24+IF(N24>0,N24,0) -> 0 | F24: =集計用!AR69+全体会計の値を張り付け!F24+IF(N24<0,N24*-1,0) -> 9845000 | G24: 0 | H24: 0 | I24: 0 | J24: 0 | L24: 9845000 | M24: =集計用!AR25+全体会計の値を張り付け!D24 -> 9845000 | N24: 0
B25: 物品 | D25: 870827388 | E25: =集計用!AR48+全体会計の値を張り付け!E25+IF(N25>0,N25,0) -> 47226237 | F25: =集計用!AR70+全体会計の値を張り付け!F25+IF(N25<0,N25*-1,0) -> 4556380 | G25: 913497245 | H25: =集計用!AR114+全体会計の値を張り付け!H25 -> 631215208 | I25: =集計用!AR136+全体会計の値を張り付け!I25 -> 75072398 | J25: 282282037 | L25: 870827388 | M25: =集計用!AR26+全体会計の値を張り付け!D25 -> 870827388 | N25: 0
B26: 合計 | D26: =D9+D19+D25 -> 16615552584 | E26: 771969361 | F26: 159861021 | G26: 17227660924 | H26: 9936495048 | I26: 464380837 | J26: 7291165876 | L26: =L9+L19 -> 16615552584 | M26: =M9+M19 -> 16615552584

Sheet 全体会計の値を張り付け
A1: 【様式第５号】
A2: 全体附属明細書
A3: １．貸借対照表の内容に関する明細
A4: ※下記以外の資産及び負債のうち、その額が資産総額の100分の5を超える科目についても作成する。
A5: （１）資産項目の明細
B7: ①有形固定資産の明細 | J7: （単位： 円）
B8: 区分 | D8: 前年度末残高 （A） | E8: 本年度増加額 （B） | F8: 本年度減少額 （C） | G8: 本年度末残高 （A)＋（B)-（C) （D） | H8: 本年度末 減価償却累計額 （E) | I8: 本年度償却額 （F) | J8: 差引本年度末残高 （D)－（E) （G)
B9: 事業用資産
B10: 土地 | D10: 105763116 | E10: 2548528 | G10: 108311644 | J10: 108311644
B11: 立木竹
B12: 建物 | D12: 4283624947 | E12: 454777457 | F12: 0 | G12: 4738402404 | H12: 2693044180 | I12: 87754394 | J12: 2045358224
B13: 工作物 | D13: 444982323 | E13: 66331118 | G13: 511313441 | H13: 209352705 | I13: 19642717 | J13: 301960736
B14: 船舶
B15: 浮標等
B16: 航空機
B17: その他
B18: 建設仮勘定 | D18: 156959583 | E18: 2526700 | F18: 144859583 | G18: 14626700 | J18: 14626700
B19: インフラ資産
B20: 土地 | D20: 57710154 | E20: 0 | F20: 600058 | G20: 57110096 | H20: 0 | I20: 0 | J20: 57110096
B21: 建物 | D21: 313394767 | E21: 0 | F21: 0 | G21: 313394767 | H21: 104263749 | I21: 12042339 | J21: 209131018
B22: 工作物 | D22: 9784023295 | E22: 181082439 | F22: 0 | G22: 9965105734 | H22: 5866449475 | I22: 247994030 | J22: 4098656259
B23: その他
B24: 建設仮勘定 | D24: 9845000 | F24: 9845000
B25: 物品 | D25: 769593846 | E25: 34770394 | G25: 804364240 | H25: 553949235 | I25: 66327927 | J25: 250415005
B26: 合計

Sheet 集計用
A1: 【様式第５号】 | W1: 非表示あり→
A2: 附属明細書 | D2: ←消したい列のセルをアクティブにして、ボタンを押してください。 | AR2: ↓列を追加する場合は数式を修正してください。
A3: １．貸借対照表の内容に関する明細
A4: （１）資産項目の明細 | D4: 1 | F4: 2 | H4: 3 | J4: 4 | L4: 5 | N4: 6 | P4: 7 | R4: 8 | T4: 9 | V4: 10 | X4: 11 | Z4: 12 | AB4: 13 | AD4: 14 | AF4: 15 | AH4: 16 | AJ4: 17 | AL4: 18 | AN4: 19 | AP4: 20
B6: ①有形固定資産の明細 | D6: 連結割合↓ | F6: 連結割合↓ | H6: 連結割合↓ | J6: 連結割合↓ | L6: 連結割合↓ | N6: 連結割合↓ | P6: 連結割合↓ | R6: 連結割合↓ | T6: 連結割合↓ | V6: 連結割合↓ | X6: 連結割合↓ | Z6: 連結割合↓ | AB6: 連結割合↓ | AD6: 連結割合↓ | AF6: 連結割合↓ | AH6: 連結割合↓ | AJ6: 連結割合↓ | AL6: 連結割合↓ | AN6: 連結割合↓ | AP6: 連結割合↓
B7: 前年度末残高（Ａ） | D7: 1 | F7: 1 | H7: 1 | J7: 1 | L7: 1
B8: 区分 | D8: 按分後 | E8: 按分前 | F8: 按分後 | G8: 按分前 | H8: 按分後 | I8: 按分前 | J8: 按分後 | K8: 按分前 | L8: 按分後 | M8: 按分前 | N8: 按分後 | O8: 按分前 | P8: 按分後 | Q8: 按分前 | R8: 按分後 | S8: 按分前 | T8: 按分後 | U8: 按分前 | V8: 按分後 | W8: 按分前 | X8: 按分後 | Y8: 按分前 | Z8: 按分後 | AA8: 按分前 | AB8: 按分後 | AC8: 按分前 | AD8: 按分後 | AE8: 按分前 | AF8: 按分後 | AG8: 按分前 | AH8: 按分後 | AI8: 按分前 | AJ8: 按分後 | AK8: 按分前 | AL8: 按分後 | AM8: 按分前 | AN8: 按分後 | AO8: 按分前 | AP8: 按分後 | AQ8: 按分前 | AR8: 連結会計 計
B9: 名称 | D9: 島前町村組合 | F9: 隠岐広域連合 | H9: 総合事務組合 | J9: 後期高齢 | L9: 知夫里島 | AR9: =COUNT(D9:AQ9) -> 0
B10: 事業用資産
B11: 土地 | D11: =ROUND(D7*E11,0) -> 0 | F11: =ROUND(F7*G11,0) -> 20983903 | G11: =31660460-10676557 -> 20983903 | H11: =ROUND(H7*I11,0) -> 3649094 | I11: 3649094 | J11: =ROUND(J7*K11,0) -> 0 | L11: =ROUND(L7*M11,0) -> 0 | N11: =ROUND(N7*O11,0) -> 0 | P11: =ROUND(P7*Q11,0) -> 0 | R11: =ROUND(R7*S11,0) -> 0 | T11: =ROUND(T7*U11,0) -> 0 | V11: =ROUND(V7*W11,0) -> 0 | X11: =ROUND(X7*Y11,0) -> 0 | Z11: =ROUND(Z7*AA11,0) -> 0 | AB11: =ROUND(AB7*AC11,0) -> 0 | AD11: =ROUND(AD7*AE11,0) -> 0 | AF11: =ROUND(AF7*AG11,0) -> 0 | AH11: =ROUND(AH7*AI11,0) -> 0 | AJ11: =ROUND(AJ7*AK11,0) -> 0 | AL11: =ROUND(AL7*AM11,0) -> 0 | AN11: =ROUND(AN7*AO11,0) -> 0 | AP11: =ROUND(AP7*AQ11,0) -> 0 | AR11: =D11+F11+H11+J11+L11+N11+P11+R11+T11+V11+X11+Z11+AB11+AD11+AF11+AH11+AJ11+AL11+AN11+AP11 -> 24632997
B12: 立木竹 | D12: =ROUND(D7*E12,0) -> 0 | F12: =ROUND(F7*G12,0) -> 0 | H12: =ROUND(H7*I12,0) -> 0 | J12: =ROUND(J7*K12,0) -> 0 | L12: =ROUND(L7*M12,0) -> 0 | N12: =ROUND(N7*O12,0) -> 0 | P12: =ROUND(P7*Q12,0) -> 0 | R12: =ROUND(R7*S12,0) -> 0 | T12: =ROUND(T7*U12,0) -> 0 | V12: =ROUND(V7*W12,0) -> 0 | X12: =ROUND(X7*Y12,0) -> 0 | Z12: =ROUND(Z7*AA12,0) -> 0 | AB12: =ROUND(AB7*AC12,0) -> 0 | AD12: =ROUND(AD7*AE12,0) -> 0 | AF12: =ROUND(AF7*AG12,0) -> 0 | AH12: =ROUND(AH7*AI12,0) -> 0 | AJ12: =ROUND(AJ7*AK12,0) -> 0 | AL12: =ROUND(AL7*AM12,0) -> 0 | AN12: =ROUND(AN7*AO12,0) -> 0 | AP12: =ROUND(AP7*AQ12,0) -> 0 | AR12: =D12+F12+H12+J12+L12+N12+P12+R12+T12+V12+X12+Z12+AB12+AD12+AF12+AH12+AJ12+AL12+AN12+AP12 -> 0
B13: 建物 | D13: =ROUND(D7*E13,0) -> 0 | F13: =ROUND(F7*G13,0) -> 204814783 | G13: =300502704-95687921 -> 204814783 | H13: =ROUND(H7*I13,0) -> 21446984 | I13: 21446984 | J13: =ROUND(J7*K13,0) -> 0 | L13: =ROUND(L7*M13,0) -> 0 | N13: =ROUND(N7*O13,0) -> 0 | P13: =ROUND(P7*Q13,0) -> 0 | R13: =ROUND(R7*S13,0) -> 0 | T13: =ROUND(T7*U13,0) -> 0 | V13: =ROUND(V7*W13,0) -> 0 | X13: =ROUND(X7*Y13,0) -> 0 | Z13: =ROUND(Z7*AA13,0) -> 0 | AB13: =ROUND(AB7*AC13,0) -> 0 | AD13: =ROUND(AD7*AE13,0) -> 0 | AF13: =ROUND(AF7*AG13,0) -> 0 | AH13: =ROUND(AH7*AI13,0) -> 0 | AJ13: =ROUND(AJ7*AK13,0) -> 0 | AL13: =ROUND(AL7*AM13,0) -> 0 | AN13: =ROUND(AN7*AO13,0) -> 0 | AP13: =ROUND(AP7*AQ13,0) -> 0 | AR13: 226261767
B14: 工作物 | D14: =ROUND(D7*E14,0) -> 0 | F14: =ROUND(F7*G14,0) -> 8209697 | G14: =19441583-11231886 -> 8209697 | H14: =ROUND(H7*I14,0) -> 0 | J14: =ROUND(J7*K14,0) -> 0 | L14: =ROUND(L7*M14,0) -> 0 | N14: =ROUND(N7*O14,0) -> 0 | P14: =ROUND(P7*Q14,0) -> 0 | R14: =ROUND(R7*S14,0) -> 0 | T14: =ROUND(T7*U14,0) -> 0 | V14: =ROUND(V7*W14,0) -> 0 | X14: =ROUND(X7*Y14,0) -> 0 | Z14: =ROUND(Z7*AA14,0) -> 0 | AB14: =ROUND(AB7*AC14,0) -> 0 | AD14: =ROUND(AD7*AE14,0) -> 0 | AF14: =ROUND(AF7*AG14,0) -> 0 | AH14: =ROUND(AH7*AI14,0) -> 0 | AJ14: =ROUND(AJ7*AK14,0) -> 0 | AL14: =ROUND(AL7*AM14,0) -> 0 | AN14: =ROUND(AN7*AO14,0) -> 0 | AP14: =ROUND(AP7*AQ14,0) -> 0 | AR14: 8209697
B15: 船舶 | D15: =ROUND(D7*E15,0) -> 157248800 | E15: 157248800 | F15: =ROUND(F7*G15,0) -> 172068750 | G15: 172068750 | H15: =ROUND(H7*I15,0) -> 0 | J15: =ROUND(J7*K15,0) -> 0 | L15: =ROUND(L7*M15,0) -> 0 | N15: =ROUND(N7*O15,0) -> 0 | P15: =ROUND(P7*Q15,0) -> 0 | R15: =ROUND(R7*S15,0) -> 0 | T15: =ROUND(T7*U15,0) -> 0 | V15: =ROUND(V7*W15,0) -> 0 | X15: =ROUND(X7*Y15,0) -> 0 | Z15: =ROUND(Z7*AA15,0) -> 0 | AB15: =ROUND(AB7*AC15,0) -> 0 | AD15: =ROUND(AD7*AE15,0) -> 0 | AF15: =ROUND(AF7*AG15,0) -> 0 | AH15: =ROUND(AH7*AI15,0) -> 0 | AJ15: =ROUND(AJ7*AK15,0) -> 0 | AL15: =ROUND(AL7*AM15,0) -> 0 | AN15: =ROUND(AN7*AO15,0) -> 0 | AP15: =ROUND(AP7*AQ15,0) -> 0 | AR15: 329317550
B16: 浮標等 | D16: =ROUND(D7*E16,0) -> 0 | F16: =ROUND(F7*G16,0) -> 0 | H16: =ROUND(H7*I16,0) -> 0 | J16: =ROUND(J7*K16,0) -> 0 | L16: =ROUND(L7*M16,0) -> 0 | N16: =ROUND(N7*O16,0) -> 0 | P16: =ROUND(P7*Q16,0) -> 0 | R16: =ROUND(R7*S16,0) -> 0 | T16: =ROUND(T7*U16,0) -> 0 | V16: =ROUND(V7*W16,0) -> 0 | X16: =ROUND(X7*Y16,0) -> 0 | Z16: =ROUND(Z7*AA16,0) -> 0 | AB16: =ROUND(AB7*AC16,0) -> 0 | AD16: =ROUND(AD7*AE16,0) -> 0 | AF16: =ROUND(AF7*AG16,0) -> 0 | AH16: =ROUND(AH7*AI16,0) -> 0 | AJ16: =ROUND(AJ7*AK16,0) -> 0 | AL16: =ROUND(AL7*AM16,0) -> 0 | AN16: =ROUND(AN7*AO16,0) -> 0 | AP16: =ROUND(AP7*AQ16,0) -> 0 | AR16: 0
B17: 航空機 | D17: =ROUND(D7*E17,0) -> 0 | F17: =ROUND(F7*G17,0) -> 0 | H17: =ROUND(H7*I17,0) -> 0 | J17: =ROUND(J7*K17,0) -> 0 | L17: =ROUND(L7*M17,0) -> 0 | N17: =ROUND(N7*O17,0) -> 0 | P17: =ROUND(P7*Q17,0) -> 0 | R17: =ROUND(R7*S17,0) -> 0 | T17: =ROUND(T7*U17,0) -> 0 | V17: =ROUND(V7*W17,0) -> 0 | X17: =ROUND(X7*Y17,0) -> 0 | Z17: =ROUND(Z7*AA17,0) -> 0 | AB17: =ROUND(AB7*AC17,0) -> 0 | AD17: =ROUND(AD7*AE17,0) -> 0 | AF17: =ROUND(AF7*AG17,0) -> 0 | AH17: =ROUND(AH7*AI17,0) -> 0 | AJ17: =ROUND(AJ7*AK17,0) -> 0 | AL17: =ROUND(AL7*AM17,0) -> 0 | AN17: =ROUND(AN7*AO17,0) -> 0 | AP17: =ROUND(AP7*AQ17,0) -> 0 | AR17: 0
B18: その他 | D18: =ROUND(D7*E18,0) -> 0 | F18: =ROUND(F7*G18,0) -> 0 | H18: =ROUND(H7*I18,0) -> 0 | J18: =ROUND(J7*K18,0) -> 0 | L18: =ROUND(L7*M18,0) -> 0 | N18: =ROUND(N7*O18,0) -> 0 | P18: =ROUND(P7*Q18,0) -> 0 | R18: =ROUND(R7*S18,0) -> 0 | T18: =ROUND(T7*U18,0) -> 0 | V18: =ROUND(V7*W18,0) -> 0 | X18: =ROUND(X7*Y18,0) -> 0 | Z18: =ROUND(Z7*AA18,0) -> 0 | AB18: =ROUND(AB7*AC18,0) -> 0 | AD18: =ROUND(AD7*AE18,0) -> 0 | AF18: =ROUND(AF7*AG18,0) -> 0 | AH18: =ROUND(AH7*AI18,0) -> 0 | AJ18: =ROUND(AJ7*AK18,0) -> 0 | AL18: =ROUND(AL7*AM18,0) -> 0 | AN18: =ROUND(AN7*AO18,0) -> 0 | AP18: =ROUND(AP7*AQ18,0) -> 0 | AR18: 0
B19: 建設仮勘定 | D19: =ROUND(D7*E19,0) -> 0 | F19: =ROUND(F7*G19,0) -> 0 | H19: =ROUND(H7*I19,0) -> 0 | J19: =ROUND(J7*K19,0) -> 0 | L19: =ROUND(L7*M19,0) -> 0 | N19: =ROUND(N7*O19,0) -> 0 | P19: =ROUND(P7*Q19,0) -> 0 | R19: =ROUND(R7*S19,0) -> 0 | T19: =ROUND(T7*U19,0) -> 0 | V19: =ROUND(V7*W19,0) -> 0 | X19: =ROUND(X7*Y19,0) -> 0 | Z19: =ROUND(Z7*AA19,0) -> 0 | AB19: =ROUND(AB7*AC19,0) -> 0 | AD19: =ROUND(AD7*AE19,0) -> 0 | AF19: =ROUND(AF7*AG19,0) -> 0 | AH19: =ROUND(AH7*AI19,0) -> 0 | AJ19: =ROUND(AJ7*AK19,0) -> 0 | AL19: =ROUND(AL7*AM19,0) -> 0 | AN19: =ROUND(AN7*AO19,0) -> 0 | AP19: =ROUND(AP7*AQ19,0) -> 0 | AR19: 0
B20: インフラ資産
B21: 土地 | D21: =ROUND(D7*E21,0) -> 0 | F21: =ROUND(F7*G21,0) -> 0 | H21: =ROUND(H7*I21,0) -> 0 | J21: =ROUND(J7*K21,0) -> 0 | L21: =ROUND(L7*M21,0) -> 0 | N21: =ROUND(N7*O21,0) -> 0 | P21: =ROUND(P7*Q21,0) -> 0 | R21: =ROUND(R7*S21,0) -> 0 | T21: =ROUND(T7*U21,0) -> 0 | V21: =ROUND(V7*W21,0) -> 0 | X21: =ROUND(X7*Y21,0) -> 0 | Z21: =ROUND(Z7*AA21,0) -> 0 | AB21: =ROUND(AB7*AC21,0) -> 0 | AD21: =ROUND(AD7*AE21,0) -> 0 | AF21: =ROUND(AF7*AG21,0) -> 0 | AH21: =ROUND(AH7*AI21,0) -> 0 | AJ21: =ROUND(AJ7*AK21,0) -> 0 | AL21: =ROUND(AL7*AM21,0) -> 0 | AN21: =ROUND(AN7*AO21,0) -> 0 | AP21: =ROUND(AP7*AQ21,0) -> 0 | AR21: =D21+F21+H21+J21+L21+N21+P21+R21+T21+V21+X21+Z21+AB21+AD21+AF21+AH21+AJ21+AL21+AN21+AP21 -> 0
B22: 建物 | D22: =ROUND(D7*E22,0) -> 0 | F22: =ROUND(F7*G22,0) -> 0 | H22: =ROUND(H7*I22,0) -> 0 | J22: =ROUND(J7*K22,0) -> 0 | L22: =ROUND(L7*M22,0) -> 0 | N22: =ROUND(N7*O22,0) -> 0 | P22: =ROUND(P7*Q22,0) -> 0 | R22: =ROUND(R7*S22,0) -> 0 | T22: =ROUND(T7*U22,0) -> 0 | V22: =ROUND(V7*W22,0) -> 0 | X22: =ROUND(X7*Y22,0) -> 0 | Z22: =ROUND(Z7*AA22,0) -> 0 | AB22: =ROUND(AB7*AC22,0) -> 0 | AD22: =ROUND(AD7*AE22,0) -> 0 | AF22: =ROUND(AF7*AG22,0) -> 0 | AH22: =ROUND(AH7*AI22,0) -> 0 | AJ22: =ROUND(AJ7*AK22,0) -> 0 | AL22: =ROUND(AL7*AM22,0) -> 0 | AN22: =ROUND(AN7*AO22,0) -> 0 | AP22: =ROUND(AP7*AQ22,0) -> 0 | AR22: 0
B23: 工作物 | D23: =ROUND(D7*E23,0) -> 0 | F23: =ROUND(F7*G23,0) -> 0 | H23: =ROUND(H7*I23,0) -> 0 | J23: =ROUND(J7*K23,0) -> 0 | L23: =ROUND(L7*M23,0) -> 0 | N23: =ROUND(N7*O23,0) -> 0 | P23: =ROUND(P7*Q23,0) -> 0 | R23: =ROUND(R7*S23,0) -> 0 | T23: =ROUND(T7*U23,0) -> 0 | V23: =ROUND(V7*W23,0) -> 0 | X23: =ROUND(X7*Y23,0) -> 0 | Z23: =ROUND(Z7*AA23,0) -> 0 | AB23: =ROUND(AB7*AC23,0) -> 0 | AD23: =ROUND(AD7*AE23,0) -> 0 | AF23: =ROUND(AF7*AG23,0) -> 0 | AH23: =ROUND(AH7*AI23,0) -> 0 | AJ23: =ROUND(AJ7*AK23,0) -> 0 | AL23: =ROUND(AL7*AM23,0) -> 0 | AN23: =ROUND(AN7*AO23,0) -> 0 | AP23: =ROUND(AP7*AQ23,0) -> 0 | AR23: 0
B24: その他 | D24: =ROUND(D7*E24,0) -> 0 | F24: =ROUND(F7*G24,0) -> 0 | H24: =ROUND(H7*I24,0) -> 0 | J24: =ROUND(J7*K24,0) -> 0 | L24: =ROUND(L7*M24,0) -> 0 | N24: =ROUND(N7*O24,0) -> 0 | P24: =ROUND(P7*Q24,0) -> 0 | R24: =ROUND(R7*S24,0) -> 0 | T24: =ROUND(T7*U24,0) -> 0 | V24: =ROUND(V7*W24,0) -> 0 | X24: =ROUND(X7*Y24,0) -> 0 | Z24: =ROUND(Z7*AA24,0) -> 0 | AB24: =ROUND(AB7*AC24,0) -> 0 | AD24: =ROUND(AD7*AE24,0) -> 0 | AF24: =ROUND(AF7*AG24,0) -> 0 | AH24: =ROUND(AH7*AI24,0) -> 0 | AJ24: =ROUND(AJ7*AK24,0) -> 0 | AL24: =ROUND(AL7*AM24,0) -> 0 | AN24: =ROUND(AN7*AO24,0) -> 0 | AP24: =ROUND(AP7*AQ24,0) -> 0 | AR24: 0
B25: 建設仮勘定 | D25: =ROUND(D7*E25,0) -> 0 | F25: =ROUND(F7*G25,0) -> 0 | H25: =ROUND(H7*I25,0) -> 0 | J25: =ROUND(J7*K25,0) -> 0 | L25: =ROUND(L7*M25,0) -> 0 | N25: =ROUND(N7*O25,0) -> 0 | P25: =ROUND(P7*Q25,0) -> 0 | R25: =ROUND(R7*S25,0) -> 0 | T25: =ROUND(T7*U25,0) -> 0 | V25: =ROUND(V7*W25,0) -> 0 | X25: =ROUND(X7*Y25,0) -> 0 | Z25: =ROUND(Z7*AA25,0) -> 0 | AB25: =ROUND(AB7*AC25,0) -> 0 | AD25: =ROUND(AD7*AE25,0) -> 0 | AF25: =ROUND(AF7*AG25,0) -> 0 | AH25: =ROUND(AH7*AI25,0) -> 0 | AJ25: =ROUND(AJ7*AK25,0) -> 0 | AL25: =ROUND(AL7*AM25,0) -> 0 | AN25: =ROUND(AN7*AO25,0) -> 0 | AP25: =ROUND(AP7*AQ25,0) -> 0 | AR25: 0
B26: 物品 | D26: =ROUND(D7*E26,0) -> 1546904 | E26: 1546904 | F26: =ROUND(F7*G26,0) -> 95837628 | G26: =194040123-98202495 -> 95837628 | H26: =ROUND(H7*I26,0) -> 12581 | I26: 12581 | J26: =ROUND(J7*K26,0) -> 29119 | K26: =26852+2267 -> 29119 | L26: =ROUND(L7*M26,0) -> 3807310 | M26: 3807310 | N26: =ROUND(N7*O26,0) -> 0 | P26: =ROUND(P7*Q26,0) -> 0 | R26: =ROUND(R7*S26,0) -> 0 | T26: =ROUND(T7*U26,0) -> 0 | V26: =ROUND(V7*W26,0) -> 0 | X26: =ROUND(X7*Y26,0) -> 0 | Z26: =ROUND(Z7*AA26,0) -> 0 | AB26: =ROUND(AB7*AC26,0) -> 0 | AD26: =ROUND(AD7*AE26,0) -> 0 | AF26: =ROUND(AF7*AG26,0) -> 0 | AH26: =ROUND(AH7*AI26,0) -> 0 | AJ26: =ROUND(AJ7*AK26,0) -> 0 | AL26: =ROUND(AL7*AM26,0) -> 0 | AN26: =ROUND(AN7*AO26,0) -> 0 | AP26: =ROUND(AP7*AQ26,0) -> 0 | AR26: 101233542
B27: 合計 | D27: =SUM(D10:D26) -> 158795704 | E27: 158795704 | F27: 501914761 | G27: 501914761 | H27: 25108659 | I27: 25108659 | J27: 29119 | K27: 29119 | L27: 3807310 | M27: 3807310 | N27: 0 | O27: 0 | P27: 0 | Q27: 0 | R27: 0 | S27: 0 | T27: 0 | U27: 0 | V27: 0 | W27: 0 | X27: =SUM(X10:X26) -> 0 | Y27: 0 | Z27: =SUM(Z10:Z26) -> 0 | AA27: 0 | AB27: 0 | AC27: 0 | AD27: 0 | AE27: 0 | AF27: 0 | AG27: 0 | AH27: 0 | AI27: 0 | AJ27: 0 | AK27: 0 | AL27: =SUM(AL10:AL26) -> 0 | AM27: =SUM(AM10:AM26) -> 0 | AN27: 0 | AO27: =SUM(AO10:AO26) -> 0 | AP27: 0 | AQ27: 0 | AR27: 689655553
B29: 本年度増加額（Ｂ）
B30: 区分 | D30: 連結(比例) | E30: 連結(比例) | F30: 連結(比例) | G30: 連結(全部) | H30: 連結(比例) | I30: 連結(全部) | J30: 連結(比例) | K30: 連結(全部) | L30: 連結(比例) | M30: 連結(全部) | N30: 連結(比例) | O30: 連結(全部) | P30: 連結(比例) | Q30: 連結(全部) | R30: 連結(比例) | S30: 連結(全部) | T30: 連結(比例) | U30: 連結(全部) | V30: 連結(比例) | W30: 連結(全部) | X30: 連結(比例) | Y30: 連結(比例) | Z30: 連結(比例) | AA30: 連結(全部) | AB30: 連結(比例) | AC30: 連結(全部) | AD30: 連結(比例) | AE30: 連結(全部) | AF30: 連結(比例) | AG30: 連結(全部) | AH30: 連結(比例) | AI30: 連結(全部) | AJ30: 連結(比例) | AK30: 連結(全部) | AL30: 連結(比例) | AM30: 連結(全部) | AN30: 連結(比例) | AO30: 連結(全部) | AP30: 連結(比例) | AQ30: 連結(全部) | AR30: 連結会計 計
B31: 名称 | D31: =D9 -> 島前町村組合 | F31: =F9 -> 隠岐広域連合 | H31: =H9 -> 総合事務組合 | J31: =J9 -> 後期高齢 | L31: =L9 -> 知夫里島 | N31: =N9 -> 0 | P31: =P9 -> 0 | R31: =R9 -> 0 | T31: =T9 -> 0 | V31: =V9 -> 0 | X31: =X9 -> 0 | Z31: =Z9 -> 0 | AB31: =AB9 -> 0 | AD31: =AD9 -> 0 | AF31: =AF9 -> 0 | AH31: =AH9 -> 0 | AJ31: =AJ9 -> 0 | AL31: =AL9 -> 0 | AN31: =AN9 -> 0 | AP31: =AP9 -> 0
B32: 事業用資産
B33: 土地 | D33: =ROUND(D7*E33,0) -> 0 | F33: =ROUND(F7*G33,0) -> 0 | H33: =ROUND(H7*I33,0) -> 0 | J33: =ROUND(J7*K33,0) -> 0 | L33: =ROUND(L7*M33,0) -> 0 | N33: =ROUND(N7*O33,0) -> 0 | P33: =ROUND(P7*Q33,0) -> 0 | R33: =ROUND(R7*S33,0) -> 0 | T33: =ROUND(T7*U33,0) -> 0 | V33: =ROUND(V7*W33,0) -> 0 | X33: =ROUND(X7*Y33,0) -> 0 | Z33: =ROUND(Z7*AA33,0) -> 0 | AB33: =ROUND(AB7*AC33,0) -> 0 | AD33: =ROUND(AD7*AE33,0) -> 0 | AF33: =ROUND(AF7*AG33,0) -> 0 | AH33: =ROUND(AH7*AI33,0) -> 0 | AJ33: =ROUND(AJ7*AK33,0) -> 0 | AL33: =ROUND(AL7*AM33,0) -> 0 | AN33: =ROUND(AN7*AO33,0) -> 0 | AP33: =ROUND(AP7*AQ33,0) -> 0 | AR33: =D33+F33+H33+J33+L33+N33+P33+R33+T33+V33+X33+Z33+AB33+AD33+AF33+AH33+AJ33+AL33+AN33+AP33 -> 0
B34: 立木竹 | D34: =ROUND(D7*E34,0) -> 0 | F34: =ROUND(F7*G34,0) -> 0 | H34: =ROUND(H7*I34,0) -> 0 | J34: =ROUND(J7*K34,0) -> 0 | L34: =ROUND(L7*M34,0) -> 0 | N34: =ROUND(N7*O34,0) -> 0 | P34: =ROUND(P7*Q34,0) -> 0 | R34: =ROUND(R7*S34,0) -> 0 | T34: =ROUND(T7*U34,0) -> 0 | V34: =ROUND(V7*W34,0) -> 0 | X34: =ROUND(X7*Y34,0) -> 0 | Z34: =ROUND(Z7*AA34,0) -> 0 | AB34: =ROUND(AB7*AC34,0) -> 0 | AD34: =ROUND(AD7*AE34,0) -> 0 | AF34: =ROUND(AF7*AG34,0) -> 0 | AH34: =ROUND(AH7*AI34,0) -> 0 | AJ34: =ROUND(AJ7*AK34,0) -> 0 | AL34: =ROUND(AL7*AM34,0) -> 0 | AN34: =ROUND(AN7*AO34,0) -> 0 | AP34: =ROUND(AP7*AQ34,0) -> 0 | AR34: 0
B35: 建物 | D35: =ROUND(D7*E35,0) -> 0 | F35: =ROUND(F7*G35,0) -> 8831982 | G35: =9068982-237000 -> 8831982 | H35: =ROUND(H7*I35,0) -> 0 | J35: =ROUND(J7*K35,0) -> 0 | L35: =ROUND(L7*M35,0) -> 0 | N35: =ROUND(N7*O35,0) -> 0 | P35: =ROUND(P7*Q35,0) -> 0 | R35: =ROUND(R7*S35,0) -> 0 | T35: =ROUND(T7*U35,0) -> 0 | V35: =ROUND(V7*W35,0) -> 0 | X35: =ROUND(X7*Y35,0) -> 0 | Z35: =ROUND(Z7*AA35,0) -> 0 | AB35: =ROUND(AB7*AC35,0) -> 0 | AD35: =ROUND(AD7*AE35,0) -> 0 | AF35: =ROUND(AF7*AG35,0) -> 0 | AH35: =ROUND(AH7*AI35,0) -> 0 | AJ35: =ROUND(AJ7*AK35,0) -> 0 | AL35: =ROUND(AL7*AM35,0) -> 0 | AN35: =ROUND(AN7*AO35,0) -> 0 | AP35: =ROUND(AP7*AQ35,0) -> 0 | AR35: 8831982
B36: 工作物 | D36: =ROUND(D7*E36,0) -> 0 | F36: =ROUND(F7*G36,0) -> 64900 | G36: 64900 | H36: =ROUND(H7*I36,0) -> 0 | J36: =ROUND(J7*K36,0) -> 0 | L36: =ROUND(L7*M36,0) -> 0 | N36: =ROUND(N7*O36,0) -> 0 | P36: =ROUND(P7*Q36,0) -> 0 | R36: =ROUND(R7*S36,0) -> 0 | T36: =ROUND(T7*U36,0) -> 0 | V36: =ROUND(V7*W36,0) -> 0 | X36: =ROUND(X7*Y36,0) -> 0 | Z36: =ROUND(Z7*AA36,0) -> 0 | AB36: =ROUND(AB7*AC36,0) -> 0 | AD36: =ROUND(AD7*AE36,0) -> 0 | AF36: =ROUND(AF7*AG36,0) -> 0 | AH36: =ROUND(AH7*AI36,0) -> 0 | AJ36: =ROUND(AJ7*AK36,0) -> 0 | AL36: =ROUND(AL7*AM36,0) -> 0 | AN36: =ROUND(AN7*AO36,0) -> 0 | AP36: =ROUND(AP7*AQ36,0) -> 0 | AR36: 64900
B37: 船舶 | D37: =ROUND(D7*E37,0) -> 8580000 | E37: 8580000 | F37: =ROUND(F7*G37,0) -> 0 | H37: =ROUND(H7*I37,0) -> 0 | J37: =ROUND(J7*K37,0) -> 0 | L37: =ROUND(L7*M37,0) -> 0 | N37: =ROUND(N7*O37,0) -> 0 | P37: =ROUND(P7*Q37,0) -> 0 | R37: =ROUND(R7*S37,0) -> 0 | T37: =ROUND(T7*U37,0) -> 0 | V37: =ROUND(V7*W37,0) -> 0 | X37: =ROUND(X7*Y37,0) -> 0 | Z37: =ROUND(Z7*AA37,0) -> 0 | AB37: =ROUND(AB7*AC37,0) -> 0 | AD37: =ROUND(AD7*AE37,0) -> 0 | AF37: =ROUND(AF7*AG37,0) -> 0 | AH37: =ROUND(AH7*AI37,0) -> 0 | AJ37: =ROUND(AJ7*AK37,0) -> 0 | AL37: =ROUND(AL7*AM37,0) -> 0 | AN37: =ROUND(AN7*AO37,0) -> 0 | AP37: =ROUND(AP7*AQ37,0) -> 0 | AR37: 8580000
B38: 浮標等 | D38: =ROUND(D7*E38,0) -> 0 | F38: =ROUND(F7*G38,0) -> 0 | H38: =ROUND(H7*I38,0) -> 0 | J38: =ROUND(J7*K38,0) -> 0 | L38: =ROUND(L7*M38,0) -> 0 | N38: =ROUND(N7*O38,0) -> 0 | P38: =ROUND(P7*Q38,0) -> 0 | R38: =ROUND(R7*S38,0) -> 0 | T38: =ROUND(T7*U38,0) -> 0 | V38: =ROUND(V7*W38,0) -> 0 | X38: =ROUND(X7*Y38,0) -> 0 | Z38: =ROUND(Z7*AA38,0) -> 0 | AB38: =ROUND(AB7*AC38,0) -> 0 | AD38: =ROUND(AD7*AE38,0) -> 0 | AF38: =ROUND(AF7*AG38,0) -> 0 | AH38: =ROUND(AH7*AI38,0) -> 0 | AJ38: =ROUND(AJ7*AK38,0) -> 0 | AL38: =ROUND(AL7*AM38,0) -> 0 | AN38: =ROUND(AN7*AO38,0) -> 0 | AP38: =ROUND(AP7*AQ38,0) -> 0 | AR38: 0
B39: 航空機 | D39: =ROUND(D7*E39,0) -> 0 | F39: =ROUND(F7*G39,0) -> 0 | H39: =ROUND(H7*I39,0) -> 0 | J39: =ROUND(J7*K39,0) -> 0 | L39: =ROUND(L7*M39,0) -> 0 | N39: =ROUND(N7*O39,0) -> 0 | P39: =ROUND(P7*Q39,0) -> 0 | R39: =ROUND(R7*S39,0) -> 0 | T39: =ROUND(T7*U39,0) -> 0 | V39: =ROUND(V7*W39,0) -> 0 | X39: =ROUND(X7*Y39,0) -> 0 | Z39: =ROUND(Z7*AA39,0) -> 0 | AB39: =ROUND(AB7*AC39,0) -> 0 | AD39: =ROUND(AD7*AE39,0) -> 0 | AF39: =ROUND(AF7*AG39,0) -> 0 | AH39: =ROUND(AH7*AI39,0) -> 0 | AJ39: =ROUND(AJ7*AK39,0) -> 0 | AL39: =ROUND(AL7*AM39,0) -> 0 | AN39: =ROUND(AN7*AO39,0) -> 0 | AP39: =ROUND(AP7*AQ39,0) -> 0 | AR39: 0
B40: その他 | D40: =ROUND(D7*E40,0) -> 0 | F40: =ROUND(F7*G40,0) -> 0 | H40: =ROUND(H7*I40,0) -> 0 | J40: =ROUND(J7*K40,0) -> 0 | L40: =ROUND(L7*M40,0) -> 0 | N40: =ROUND(N7*O40,0) -> 0 | P40: =ROUND(P7*Q40,0) -> 0 | R40: =ROUND(R7*S40,0) -> 0 | T40: =ROUND(T7*U40,0) -> 0 | V40: =ROUND(V7*W40,0) -> 0 | X40: =ROUND(X7*Y40,0) -> 0 | Z40: =ROUND(Z7*AA40,0) -> 0 | AB40: =ROUND(AB7*AC40,0) -> 0 | AD40: =ROUND(AD7*AE40,0) -> 0 | AF40: =ROUND(AF7*AG40,0) -> 0 | AH40: =ROUND(AH7*AI40,0) -> 0 | AJ40: =ROUND(AJ7*AK40,0) -> 0 | AL40: =ROUND(AL7*AM40,0) -> 0 | AN40: =ROUND(AN7*AO40,0) -> 0 | AP40: =ROUND(AP7*AQ40,0) -> 0 | AR40: 0
B41: 建設仮勘定 | D41: =ROUND(D7*E41,0) -> 0 | F41: =ROUND(F7*G41,0) -> 0 | H41: =ROUND(H7*I41,0) -> 0 | J41: =ROUND(J7*K41,0) -> 0 | L41: =ROUND(L7*M41,0) -> 0 | N41: =ROUND(N7*O41,0) -> 0 | P41: =ROUND(P7*Q41,0) -> 0 | R41: =ROUND(R7*S41,0) -> 0 | T41: =ROUND(T7*U41,0) -> 0 | V41: =ROUND(V7*W41,0) -> 0 | X41: =ROUND(X7*Y41,0) -> 0 | Z41: =ROUND(Z7*AA41,0) -> 0 | AB41: =ROUND(AB7*AC41,0) -> 0 | AD41: =ROUND(AD7*AE41,0) -> 0 | AF41: =ROUND(AF7*AG41,0) -> 0 | AH41: =ROUND(AH7*AI41,0) -> 0 | AJ41: =ROUND(AJ7*AK41,0) -> 0 | AL41: =ROUND(AL7*AM41,0) -> 0 | AN41: =ROUND(AN7*AO41,0) -> 0 | AP41: =ROUND(AP7*AQ41,0) -> 0 | AR41: 0
B42: インフラ資産
B43: 土地 | D43: =ROUND(D7*E43,0) -> 0 | F43: =ROUND(F7*G43,0) -> 0 | H43: =ROUND(H7*I43,0) -> 0 | J43: =ROUND(J7*K43,0) -> 0 | L43: =ROUND(L7*M43,0) -> 0 | N43: =ROUND(N7*O43,0) -> 0 | P43: =ROUND(P7*Q43,0) -> 0 | R43: =ROUND(R7*S43,0) -> 0 | T43: =ROUND(T7*U43,0) -> 0 | V43: =ROUND(V7*W43,0) -> 0 | X43: =ROUND(X7*Y43,0) -> 0 | Z43: =ROUND(Z7*AA43,0) -> 0 | AB43: =ROUND(AB7*AC43,0) -> 0 | AD43: =ROUND(AD7*AE43,0) -> 0 | AF43: =ROUND(AF7*AG43,0) -> 0 | AH43: =ROUND(AH7*AI43,0) -> 0 | AJ43: =ROUND(AJ7*AK43,0) -> 0 | AL43: =ROUND(AL7*AM43,0) -> 0 | AN43: =ROUND(AN7*AO43,0) -> 0 | AP43: =ROUND(AP7*AQ43,0) -> 0 | AR43: =D43+F43+H43+J43+L43+N43+P43+R43+T43+V43+X43+Z43+AB43+AD43+AF43+AH43+AJ43+AL43+AN43+AP43 -> 0
B44: 建物 | D44: =ROUND(D7*E44,0) -> 0 | F44: =ROUND(F7*G44,0) -> 0 | H44: =ROUND(H7*I44,0) -> 0 | J44: =ROUND(J7*K44,0) -> 0 | L44: =ROUND(L7*M44,0) -> 0 | N44: =ROUND(N7*O44,0) -> 0 | P44: =ROUND(P7*Q44,0) -> 0 | R44: =ROUND(R7*S44,0) -> 0 | T44: =ROUND(T7*U44,0) -> 0 | V44: =ROUND(V7*W44,0) -> 0 | X44: =ROUND(X7*Y44,0) -> 0 | Z44: =ROUND(Z7*AA44,0) -> 0 | AB44: =ROUND(AB7*AC44,0) -> 0 | AD44: =ROUND(AD7*AE44,0) -> 0 | AF44: =ROUND(AF7*AG44,0) -> 0 | AH44: =ROUND(AH7*AI44,0) -> 0 | AJ44: =ROUND(AJ7*AK44,0) -> 0 | AL44: =ROUND(AL7*AM44,0) -> 0 | AN44: =ROUND(AN7*AO44,0) -> 0 | AP44: =ROUND(AP7*AQ44,0) -> 0 | AR44: 0
B45: 工作物 | D45: =ROUND(D7*E45,0) -> 0 | F45: =ROUND(F7*G45,0) -> 0 | H45: =ROUND(H7*I45,0) -> 0 | J45: =ROUND(J7*K45,0) -> 0 | L45: =ROUND(L7*M45,0) -> 0 | N45: =ROUND(N7*O45,0) -> 0 | P45: =ROUND(P7*Q45,0) -> 0 | R45: =ROUND(R7*S45,0) -> 0 | T45: =ROUND(T7*U45,0) -> 0 | V45: =ROUND(V7*W45,0) -> 0 | X45: =ROUND(X7*Y45,0) -> 0 | Z45: =ROUND(Z7*AA45,0) -> 0 | AB45: =ROUND(AB7*AC45,0) -> 0 | AD45: =ROUND(AD7*AE45,0) -> 0 | AF45: =ROUND(AF7*AG45,0) -> 0 | AH45: =ROUND(AH7*AI45,0) -> 0 | AJ45: =ROUND(AJ7*AK45,0) -> 0 | AL45: =ROUND(AL7*AM45,0) -> 0 | AN45: =ROUND(AN7*AO45,0) -> 0 | AP45: =ROUND(AP7*AQ45,0) -> 0 | AR45: 0
B46: その他 | D46: =ROUND(D7*E46,0) -> 0 | F46: =ROUND(F7*G46,0) -> 0 | H46: =ROUND(H7*I46,0) -> 0 | J46: =ROUND(J7*K46,0) -> 0 | L46: =ROUND(L7*M46,0) -> 0 | N46: =ROUND(N7*O46,0) -> 0 | P46: =ROUND(P7*Q46,0) -> 0 | R46: =ROUND(R7*S46,0) -> 0 | T46: =ROUND(T7*U46,0) -> 0 | V46: =ROUND(V7*W46,0) -> 0 | X46: =ROUND(X7*Y46,0) -> 0 | Z46: =ROUND(Z7*AA46,0) -> 0 | AB46: =ROUND(AB7*AC46,0) -> 0 | AD46: =ROUND(AD7*AE46,0) -> 0 | AF46: =ROUND(AF7*AG46,0) -> 0 | AH46: =ROUND(AH7*AI46,0) -> 0 | AJ46: =ROUND(AJ7*AK46,0) -> 0 | AL46: =ROUND(AL7*AM46,0) -> 0 | AN46: =ROUND(AN7*AO46,0) -> 0 | AP46: =ROUND(AP7*AQ46,0) -> 0 | AR46: 0
B47: 建設仮勘定 | D47: =ROUND(D7*E47,0) -> 0 | F47: =ROUND(F7*G47,0) -> 0 | H47: =ROUND(H7*I47,0) -> 0 | J47: =ROUND(J7*K47,0) -> 0 | L47: =ROUND(L7*M47,0) -> 0 | N47: =ROUND(N7*O47,0) -> 0 | P47: =ROUND(P7*Q47,0) -> 0 | R47: =ROUND(R7*S47,0) -> 0 | T47: =ROUND(T7*U47,0) -> 0 | V47: =ROUND(V7*W47,0) -> 0 | X47: =ROUND(X7*Y47,0) -> 0 | Z47: =ROUND(Z7*AA47,0) -> 0 | AB47: =ROUND(AB7*AC47,0) -> 0 | AD47: =ROUND(AD7*AE47,0) -> 0 | AF47: =ROUND(AF7*AG47,0) -> 0 | AH47: =ROUND(AH7*AI47,0) -> 0 | AJ47: =ROUND(AJ7*AK47,0) -> 0 | AL47: =ROUND(AL7*AM47,0) -> 0 | AN47: =ROUND(AN7*AO47,0) -> 0 | AP47: =ROUND(AP7*AQ47,0) -> 0 | AR47: 0
B48: 物品 | D48: =ROUND(D7*E48,0) -> 0 | F48: =ROUND(F7*G48,0) -> 8659901 | G48: =11290538-2630638+1 -> 8659901 | H48: =ROUND(H7*I48,0) -> 0 | J48: =ROUND(J7*K48,0) -> 0 | L48: =ROUND(L7*M48,0) -> 3795942 | M48: 3795942 | N48: =ROUND(N7*O48,0) -> 0 | P48: =ROUND(P7*Q48,0) -> 0 | R48: =ROUND(R7*S48,0) -> 0 | T48: =ROUND(T7*U48,0) -> 0 | V48: =ROUND(V7*W48,0) -> 0 | X48: =ROUND(X7*Y48,0) -> 0 | Z48: =ROUND(Z7*AA48,0) -> 0 | AB48: =ROUND(AB7*AC48,0) -> 0 | AD48: =ROUND(AD7*AE48,0) -> 0 | AF48: =ROUND(AF7*AG48,0) -> 0 | AH48: =ROUND(AH7*AI48,0) -> 0 | AJ48: =ROUND(AJ7*AK48,0) -> 0 | AL48: =ROUND(AL7*AM48,0) -> 0 | AN48: =ROUND(AN7*AO48,0) -> 0 | AP48: =ROUND(AP7*AQ48,0) -> 0 | AR48: 12455843
B49: 合計 | D49: =SUM(D32:D48) -> 8580000 | E49: 8580000 | F49: 17556783 | G49: 17556783 | H49: 0 | I49: 0 | J49: 0 | K49: 0 | L49: 3795942 | M49: =SUM(M32:M48) -> 3795942 | N49: =SUM(N32:N48) -> 0 | O49: 0 | P49: 0 | Q49: 0 | R49: 0 | S49: 0 | T49: 0 | U49: 0 | V49: 0 | W49: 0 | X49: =SUM(X32:X48) -> 0 | Y49: =SUM(Y32:Y48) -> 0 | Z49: =SUM(Z32:Z48) -> 0 | AA49: 0 | AB49: 0 | AC49: 0 | AD49: 0 | AE49: 0 | AF49: 0 | AG49: =SUM(AG32:AG48) -> 0 | AH49: 0 | AI49: =SUM(AI32:AI48) -> 0 | AJ49: 0 | AK49: 0 | AL49: 0 | AM49: 0 | AN49: 0 | AO49: =SUM(AO32:AO48) -> 0 | AP49: 0 | AQ49: =SUM(AQ32:AQ48) -> 0 | AR49: 29932725
B51: 本年度減少額（Ｃ）
B52: 区分 | D52: 連結(比例) | E52: 連結(比例) | F52: 連結(比例) | G52: 連結(全部) | H52: 連結(比例) | I52: 連結(全部) | J52: 連結(比例) | K52: 連結(全部) | L52: 連結(比例) | M52: 連結(全部) | N52: 連結(比例) | O52: 連結(全部) | P52: 連結(比例) | Q52: 連結(全部) | R52: 連結(比例) | S52: 連結(全部) | T52: 連結(比例) | U52: 連結(全部) | V52: 連結(比例) | W52: 連結(全部) | X52: 連結(比例) | Y52: 連結(比例) | Z52: 連結(比例) | AA52: 連結(全部) | AB52: 連結(比例) | AC52: 連結(全部) | AD52: 連結(比例) | AE52: 連結(全部) | AF52: 連結(比例) | AG52: 連結(全部) | AH52: 連結(比例) | AI52: 連結(全部) | AJ52: 連結(比例) | AK52: 連結(全部) | AL52: 連結(比例) | AM52: 連結(全部) | AN52: 連結(比例) | AO52: 連結(全部) | AP52: 連結(比例) | AQ52: 連結(全部) | AR52: 連結会計 計
B53: 名称 | D53: =D9 -> 島前町村組合 | F53: =F9 -> 隠岐広域連合 | H53: =H9 -> 総合事務組合 | J53: =J9 -> 後期高齢 | L53: =L9 -> 知夫里島 | N53: =N9 -> 0 | P53: =P9 -> 0 | R53: =R9 -> 0 | T53: =T9 -> 0 | V53: =V9 -> 0 | X53: =X9 -> 0 | Z53: =Z9 -> 0 | AB53: =AB9 -> 0 | AD53: =AD9 -> 0 | AF53: =AF9 -> 0 | AH53: =AH9 -> 0 | AJ53: =AJ9 -> 0 | AL53: =AL9 -> 0 | AN53: =AN9 -> 0 | AP53: =AP9 -> 0
B54: 事業用資産
B55: 土地 | D55: =ROUND(D7*E55,0) -> 0 | F55: =ROUND(F7*G55,0) -> 0 | H55: =ROUND(H7*I55,0) -> 0 | J55: =ROUND(J7*K55,0) -> 0 | L55: =ROUND(L7*M55,0) -> 0 | N55: =ROUND(N7*O55,0) -> 0 | P55: =ROUND(P7*Q55,0) -> 0 | R55: =ROUND(R7*S55,0) -> 0 | T55: =ROUND(T7*U55,0) -> 0 | V55: =ROUND(V7*W55,0) -> 0 | X55: =ROUND(X7*Y55,0) -> 0 | Z55: =ROUND(Z7*AA55,0) -> 0 | AB55: =ROUND(AB7*AC55,0) -> 0 | AD55: =ROUND(AD7*AE55,0) -> 0 | AF55: =ROUND(AF7*AG55,0) -> 0 | AH55: =ROUND(AH7*AI55,0) -> 0 | AJ55: =ROUND(AJ7*AK55,0) -> 0 | AL55: =ROUND(AL7*AM55,0) -> 0 | AN55: =ROUND(AN7*AO55,0) -> 0 | AP55: =ROUND(AP7*AQ55,0) -> 0 | AR55: =D55+F55+H55+J55+L55+N55+P55+R55+T55+V55+X55+Z55+AB55+AD55+AF55+AH55+AJ55+AL55+AN55+AP55 -> 0
B56: 立木竹 | D56: =ROUND(D7*E56,0) -> 0 | F56: =ROUND(F7*G56,0) -> 0 | H56: =ROUND(H7*I56,0) -> 0 | J56: =ROUND(J7*K56,0) -> 0 | L56: =ROUND(L7*M56,0) -> 0 | N56: =ROUND(N7*O56,0) -> 0 | P56: =ROUND(P7*Q56,0) -> 0 | R56: =ROUND(R7*S56,0) -> 0 | T56: =ROUND(T7*U56,0) -> 0 | V56: =ROUND(V7*W56,0) -> 0 | X56: =ROUND(X7*Y56,0) -> 0 | Z56: =ROUND(Z7*AA56,0) -> 0 | AB56: =ROUND(AB7*AC56,0) -> 0 | AD56: =ROUND(AD7*AE56,0) -> 0 | AF56: =ROUND(AF7*AG56,0) -> 0 | AH56: =ROUND(AH7*AI56,0) -> 0 | AJ56: =ROUND(AJ7*AK56,0) -> 0 | AL56: =ROUND(AL7*AM56,0) -> 0 | AN56: =ROUND(AN7*AO56,0) -> 0 | AP56: =ROUND(AP7*AQ56,0) -> 0 | AR56: 0
B57: 建物 | D57: =ROUND(D7*E57,0) -> 0 | F57: =ROUND(F7*G57,0) -> 0 | H57: =ROUND(H7*I57,0) -> 0 | J57: =ROUND(J7*K57,0) -> 0 | L57: =ROUND(L7*M57,0) -> 0 | N57: =ROUND(N7*O57,0) -> 0 | P57: =ROUND(P7*Q57,0) -> 0 | R57: =ROUND(R7*S57,0) -> 0 | T57: =ROUND(T7*U57,0) -> 0 | V57: =ROUND(V7*W57,0) -> 0 | X57: =ROUND(X7*Y57,0) -> 0 | Z57: =ROUND(Z7*AA57,0) -> 0 | AB57: =ROUND(AB7*AC57,0) -> 0 | AD57: =ROUND(AD7*AE57,0) -> 0 | AF57: =ROUND(AF7*AG57,0) -> 0 | AH57: =ROUND(AH7*AI57,0) -> 0 | AJ57: =ROUND(AJ7*AK57,0) -> 0 | AL57: =ROUND(AL7*AM57,0) -> 0 | AN57: =ROUND(AN7*AO57,0) -> 0 | AP57: =ROUND(AP7*AQ57,0) -> 0 | AR57: 0
B58: 工作物 | D58: =ROUND(D7*E58,0) -> 0 | F58: =ROUND(F7*G58,0) -> 0 | H58: =ROUND(H7*I58,0) -> 0 | J58: =ROUND(J7*K58,0) -> 0 | L58: =ROUND(L7*M58,0) -> 0 | N58: =ROUND(N7*O58,0) -> 0 | P58: =ROUND(P7*Q58,0) -> 0 | R58: =ROUND(R7*S58,0) -> 0 | T58: =ROUND(T7*U58,0) -> 0 | V58: =ROUND(V7*W58,0) -> 0 | X58: =ROUND(X7*Y58,0) -> 0 | Z58: =ROUND(Z7*AA58,0) -> 0 | AB58: =ROUND(AB7*AC58,0) -> 0 | AD58: =ROUND(AD7*AE58,0) -> 0 | AF58: =ROUND(AF7*AG58,0) -> 0 | AH58: =ROUND(AH7*AI58,0) -> 0 | AJ58: =ROUND(AJ7*AK58,0) -> 0 | AL58: =ROUND(AL7*AM58,0) -> 0 | AN58: =ROUND(AN7*AO58,0) -> 0 | AP58: =ROUND(AP7*AQ58,0) -> 0 | AR58: 0
B59: 船舶 | D59: =ROUND(D7*E59,0) -> 0 | F59: =ROUND(F7*G59,0) -> 0 | H59: =ROUND(H7*I59,0) -> 0 | J59: =ROUND(J7*K59,0) -> 0 | L59: =ROUND(L7*M59,0) -> 0 | N59: =ROUND(N7*O59,0) -> 0 | P59: =ROUND(P7*Q59,0) -> 0 | R59: =ROUND(R7*S59,0) -> 0 | T59: =ROUND(T7*U59,0) -> 0 | V59: =ROUND(V7*W59,0) -> 0 | X59: =ROUND(X7*Y59,0) -> 0 | Z59: =ROUND(Z7*AA59,0) -> 0 | AB59: =ROUND(AB7*AC59,0) -> 0 | AD59: =ROUND(AD7*AE59,0) -> 0 | AF59: =ROUND(AF7*AG59,0) -> 0 | AH59: =ROUND(AH7*AI59,0) -> 0 | AJ59: =ROUND(AJ7*AK59,0) -> 0 | AL59: =ROUND(AL7*AM59,0) -> 0 | AN59: =ROUND(AN7*AO59,0) -> 0 | AP59: =ROUND(AP7*AQ59,0) -> 0 | AR59: 0
B60: 浮標等 | D60: =ROUND(D7*E60,0) -> 0 | F60: =ROUND(F7*G60,0) -> 0 | H60: =ROUND(H7*I60,0) -> 0 | J60: =ROUND(J7*K60,0) -> 0 | L60: =ROUND(L7*M60,0) -> 0 | N60: =ROUND(N7*O60,0) -> 0 | P60: =ROUND(P7*Q60,0) -> 0 | R60: =ROUND(R7*S60,0) -> 0 | T60: =ROUND(T7*U60,0) -> 0 | V60: =ROUND(V7*W60,0) -> 0 | X60: =ROUND(X7*Y60,0) -> 0 | Z60: =ROUND(Z7*AA60,0) -> 0 | AB60: =ROUND(AB7*AC60,0) -> 0 | AD60: =ROUND(AD7*AE60,0) -> 0 | AF60: =ROUND(AF7*AG60,0) -> 0 | AH60: =ROUND(AH7*AI60,0) -> 0 | AJ60: =ROUND(AJ7*AK60,0) -> 0 | AL60: =ROUND(AL7*AM60,0) -> 0 | AN60: =ROUND(AN7*AO60,0) -> 0 | AP60: =ROUND(AP7*AQ60,0) -> 0 | AR60: 0
B61: 航空機 | D61: =ROUND(D7*E61,0) -> 0 | F61: =ROUND(F7*G61,0) -> 0 | H61: =ROUND(H7*I61,0) -> 0 | J61: =ROUND(J7*K61,0) -> 0 | L61: =ROUND(L7*M61,0) -> 0 | N61: =ROUND(N7*O61,0) -> 0 | P61: =ROUND(P7*Q61,0) -> 0 | R61: =ROUND(R7*S61,0) -> 0 | T61: =ROUND(T7*U61,0) -> 0 | V61: =ROUND(V7*W61,0) -> 0 | X61: =ROUND(X7*Y61,0) -> 0 | Z61: =ROUND(Z7*AA61,0) -> 0 | AB61: =ROUND(AB7*AC61,0) -> 0 | AD61: =ROUND(AD7*AE61,0) -> 0 | AF61: =ROUND(AF7*AG61,0) -> 0 | AH61: =ROUND(AH7*AI61,0) -> 0 | AJ61: =ROUND(AJ7*AK61,0) -> 0 | AL61: =ROUND(AL7*AM61,0) -> 0 | AN61: =ROUND(AN7*AO61,0) -> 0 | AP61: =ROUND(AP7*AQ61,0) -> 0 | AR61: 0
B62: その他 | D62: =ROUND(D7*E62,0) -> 0 | F62: =ROUND(F7*G62,0) -> 0 | H62: =ROUND(H7*I62,0) -> 0 | J62: =ROUND(J7*K62,0) -> 0 | L62: =ROUND(L7*M62,0) -> 0 | N62: =ROUND(N7*O62,0) -> 0 | P62: =ROUND(P7*Q62,0) -> 0 | R62: =ROUND(R7*S62,0) -> 0 | T62: =ROUND(T7*U62,0) -> 0 | V62: =ROUND(V7*W62,0) -> 0 | X62: =ROUND(X7*Y62,0) -> 0 | Z62: =ROUND(Z7*AA62,0) -> 0 | AB62: =ROUND(AB7*AC62,0) -> 0 | AD62: =ROUND(AD7*AE62,0) -> 0 | AF62: =ROUND(AF7*AG62,0) -> 0 | AH62: =ROUND(AH7*AI62,0) -> 0 | AJ62: =ROUND(AJ7*AK62,0) -> 0 | AL62: =ROUND(AL7*AM62,0) -> 0 | AN62: =ROUND(AN7*AO62,0) -> 0 | AP62: =ROUND(AP7*AQ62,0) -> 0 | AR62: 0
B63: 建設仮勘定 | D63: =ROUND(D7*E63,0) -> 0 | F63: =ROUND(F7*G63,0) -> 0 | H63: =ROUND(H7*I63,0) -> 0 | J63: =ROUND(J7*K63,0) -> 0 | L63: =ROUND(L7*M63,0) -> 0 | N63: =ROUND(N7*O63,0) -> 0 | P63: =ROUND(P7*Q63,0) -> 0 | R63: =ROUND(R7*S63,0) -> 0 | T63: =ROUND(T7*U63,0) -> 0 | V63: =ROUND(V7*W63,0) -> 0 | X63: =ROUND(X7*Y63,0) -> 0 | Z63: =ROUND(Z7*AA63,0) -> 0 | AB63: =ROUND(AB7*AC63,0) -> 0 | AD63: =ROUND(AD7*AE63,0) -> 0 | AF63: =ROUND(AF7*AG63,0) -> 0 | AH63: =ROUND(AH7*AI63,0) -> 0 | AJ63: =ROUND(AJ7*AK63,0) -> 0 | AL63: =ROUND(AL7*AM63,0) -> 0 | AN63: =ROUND(AN7*AO63,0) -> 0 | AP63: =ROUND(AP7*AQ63,0) -> 0 | AR63: 0
B64: インフラ資産
B65: 土地 | D65: =ROUND(D7*E65,0) -> 0 | F65: =ROUND(F7*G65,0) -> 0 | H65: =ROUND(H7*I65,0) -> 0 | J65: =ROUND(J7*K65,0) -> 0 | L65: =ROUND(L7*M65,0) -> 0 | N65: =ROUND(N7*O65,0) -> 0 | P65: =ROUND(P7*Q65,0) -> 0 | R65: =ROUND(R7*S65,0) -> 0 | T65: =ROUND(T7*U65,0) -> 0 | V65: =ROUND(V7*W65,0) -> 0 | X65: =ROUND(X7*Y65,0) -> 0 | Z65: =ROUND(Z7*AA65,0) -> 0 | AB65: =ROUND(AB7*AC65,0) -> 0 | AD65: =ROUND(AD7*AE65,0) -> 0 | AF65: =ROUND(AF7*AG65,0) -> 0 | AH65: =ROUND(AH7*AI65,0) -> 0 | AJ65: =ROUND(AJ7*AK65,0) -> 0 | AL65: =ROUND(AL7*AM65,0) -> 0 | AN65: =ROUND(AN7*AO65,0) -> 0 | AP65: =ROUND(AP7*AQ65,0) -> 0 | AR65: =D65+F65+H65+J65+L65+N65+P65+R65+T65+V65+X65+Z65+AB65+AD65+AF65+AH65+AJ65+AL65+AN65+AP65 -> 0
B66: 建物 | D66: =ROUND(D7*E66,0) -> 0 | F66: =ROUND(F7*G66,0) -> 0 | H66: =ROUND(H7*I66,0) -> 0 | J66: =ROUND(J7*K66,0) -> 0 | L66: =ROUND(L7*M66,0) -> 0 | N66: =ROUND(N7*O66,0) -> 0 | P66: =ROUND(P7*Q66,0) -> 0 | R66: =ROUND(R7*S66,0) -> 0 | T66: =ROUND(T7*U66,0) -> 0 | V66: =ROUND(V7*W66,0) -> 0 | X66: =ROUND(X7*Y66,0) -> 0 | Z66: =ROUND(Z7*AA66,0) -> 0 | AB66: =ROUND(AB7*AC66,0) -> 0 | AD66: =ROUND(AD7*AE66,0) -> 0 | AF66: =ROUND(AF7*AG66,0) -> 0 | AH66: =ROUND(AH7*AI66,0) -> 0 | AJ66: =ROUND(AJ7*AK66,0) -> 0 | AL66: =ROUND(AL7*AM66,0) -> 0 | AN66: =ROUND(AN7*AO66,0) -> 0 | AP66: =ROUND(AP7*AQ66,0) -> 0 | AR66: 0
B67: 工作物 | D67: =ROUND(D7*E67,0) -> 0 | F67: =ROUND(F7*G67,0) -> 0 | H67: =ROUND(H7*I67,0) -> 0 | J67: =ROUND(J7*K67,0) -> 0 | L67: =ROUND(L7*M67,0) -> 0 | N67: =ROUND(N7*O67,0) -> 0 | P67: =ROUND(P7*Q67,0) -> 0 | R67: =ROUND(R7*S67,0) -> 0 | T67: =ROUND(T7*U67,0) -> 0 | V67: =ROUND(V7*W67,0) -> 0 | X67: =ROUND(X7*Y67,0) -> 0 | Z67: =ROUND(Z7*AA67,0) -> 0 | AB67: =ROUND(AB7*AC67,0) -> 0 | AD67: =ROUND(AD7*AE67,0) -> 0 | AF67: =ROUND(AF7*AG67,0) -> 0 | AH67: =ROUND(AH7*AI67,0) -> 0 | AJ67: =ROUND(AJ7*AK67,0) -> 0 | AL67: =ROUND(AL7*AM67,0) -> 0 | AN67: =ROUND(AN7*AO67,0) -> 0 | AP67: =ROUND(AP7*AQ67,0) -> 0 | AR67: 0
B68: その他 | D68: =ROUND(D7*E68,0) -> 0 | F68: =ROUND(F7*G68,0) -> 0 | H68: =ROUND(H7*I68,0) -> 0 | J68: =ROUND(J7*K68,0) -> 0 | L68: =ROUND(L7*M68,0) -> 0 | N68: =ROUND(N7*O68,0) -> 0 | P68: =ROUND(P7*Q68,0) -> 0 | R68: =ROUND(R7*S68,0) -> 0 | T68: =ROUND(T7*U68,0) -> 0 | V68: =ROUND(V7*W68,0) -> 0 | X68: =ROUND(X7*Y68,0) -> 0 | Z68: =ROUND(Z7*AA68,0) -> 0 | AB68: =ROUND(AB7*AC68,0) -> 0 | AD68: =ROUND(AD7*AE68,0) -> 0 | AF68: =ROUND(AF7*AG68,0) -> 0 | AH68: =ROUND(AH7*AI68,0) -> 0 | AJ68: =ROUND(AJ7*AK68,0) -> 0 | AL68: =ROUND(AL7*AM68,0) -> 0 | AN68: =ROUND(AN7*AO68,0) -> 0 | AP68: =ROUND(AP7*AQ68,0) -> 0 | AR68: 0
B69: 建設仮勘定 | D69: =ROUND(D7*E69,0) -> 0 | F69: =ROUND(F7*G69,0) -> 0 | H69: =ROUND(H7*I69,0) -> 0 | J69: =ROUND(J7*K69,0) -> 0 | L69: =ROUND(L7*M69,0) -> 0 | N69: =ROUND(N7*O69,0) -> 0 | P69: =ROUND(P7*Q69,0) -> 0 | R69: =ROUND(R7*S69,0) -> 0 | T69: =ROUND(T7*U69,0) -> 0 | V69: =ROUND(V7*W69,0) -> 0 | X69: =ROUND(X7*Y69,0) -> 0 | Z69: =ROUND(Z7*AA69,0) -> 0 | AB69: =ROUND(AB7*AC69,0) -> 0 | AD69: =ROUND(AD7*AE69,0) -> 0 | AF69: =ROUND(AF7*AG69,0) -> 0 | AH69: =ROUND(AH7*AI69,0) -> 0 | AJ69: =ROUND(AJ7*AK69,0) -> 0 | AL69: =ROUND(AL7*AM69,0) -> 0 | AN69: =ROUND(AN7*AO69,0) -> 0 | AP69: =ROUND(AP7*AQ69,0) -> 0 | AR69: 0
B70: 物品 | D70: =ROUND(D7*E70,0) -> 0 | F70: =ROUND(F7*G70,0) -> 3597920 | G70: 3597920 | H70: =ROUND(H7*I70,0) -> 0 | J70: =ROUND(J7*K70,0) -> 0 | L70: =ROUND(L7*M70,0) -> 958460 | M70: 958460 | N70: =ROUND(N7*O70,0) -> 0 | P70: =ROUND(P7*Q70,0) -> 0 | R70: =ROUND(R7*S70,0) -> 0 | T70: =ROUND(T7*U70,0) -> 0 | V70: =ROUND(V7*W70,0) -> 0 | X70: =ROUND(X7*Y70,0) -> 0 | Z70: =ROUND(Z7*AA70,0) -> 0 | AB70: =ROUND(AB7*AC70,0) -> 0 | AD70: =ROUND(AD7*AE70,0) -> 0 | AF70: =ROUND(AF7*AG70,0) -> 0 | AH70: =ROUND(AH7*AI70,0) -> 0 | AJ70: =ROUND(AJ7*AK70,0) -> 0 | AL70: =ROUND(AL7*AM70,0) -> 0 | AN70: =ROUND(AN7*AO70,0) -> 0 | AP70: =ROUND(AP7*AQ70,0) -> 0 | AR70: 4556380
B71: 合計 | D71: =SUM(D54:D70) -> 0 | E71: 0 | F71: 3597920 | G71: 3597920 | H71: 0 | I71: 0 | J71: 0 | K71: 0 | L71: 958460 | M71: 958460 | N71: 0 | O71: 0 | P71: 0 | Q71: 0 | R71: 0 | S71: 0 | T71: 0 | U71: 0 | V71: 0 | W71: 0 | X71: =SUM(X54:X70) -> 0 | Y71: =SUM(Y54:Y70) -> 0 | Z71: =SUM(Z54:Z70) -> 0 | AA71: 0 | AB71: 0 | AC71: 0 | AD71: 0 | AE71: 0 | AF71: 0 | AG71: 0 | AH71: 0 | AI71: =SUM(AI54:AI70) -> 0 | AJ71: 0 | AK71: 0 | AL71: 0 | AM71: 0 | AN71: 0 | AO71: =SUM(AO54:AO70) -> 0 | AP71: 0 | AQ71: =SUM(AQ54:AQ70) -> 0 | AR71: 4556380
B73: 本年度末残高（Ｄ）
B74: 区分 | D74: 連結(比例) | E74: 連結(比例) | F74: 連結(比例) | G74: 連結(全部) | H74: 連結(比例) | I74: 連結(全部) | J74: 連結(比例) | K74: 連結(全部) | L74: 連結(比例) | M74: 連結(全部) | N74: 連結(比例) | O74: 連結(全部) | P74: 連結(比例) | Q74: 連結(全部) | R74: 連結(比例) | S74: 連結(全部) | T74: 連結(比例) | U74: 連結(全部) | V74: 連結(比例) | W74: 連結(全部) | X74: 連結(比例) | Y74: 連結(比例) | Z74: 連結(比例) | AA74: 連結(全部) | AB74: 連結(比例) | AC74: 連結(全部) | AD74: 連結(比例) | AE74: 連結(全部) | AF74: 連結(比例) | AG74: 連結(全部) | AH74: 連結(比例) | AI74: 連結(全部) | AJ74: 連結(比例) | AK74: 連結(全部) | AL74: 連結(比例) | AM74: 連結(全部) | AN74: 連結(比例) | AO74: 連結(全部) | AP74: 連結(比例) | AQ74: 連結(全部) | AR74: 連結会計 計
B75: 名称 | D75: =D9 -> 島前町村組合 | F75: =F9 -> 隠岐広域連合 | H75: =H9 -> 総合事務組合 | J75: =J9 -> 後期高齢 | L75: =L9 -> 知夫里島 | N75: =N9 -> 0 | P75: =P9 -> 0 | R75: =R9 -> 0 | T75: =T9 -> 0 | V75: =V9 -> 0 | X75: =X9 -> 0 | Z75: =Z9 -> 0 | AB75: =AB9 -> 0 | AD75: =AD9 -> 0 | AF75: =AF9 -> 0 | AH75: =AH9 -> 0 | AJ75: =AJ9 -> 0 | AL75: =AL9 -> 0 | AN75: =AN9 -> 0 | AP75: =AP9 -> 0
B76: 事業用資産
B77: 土地 | D77: =D11+D33-D55 -> 0 | E77: 0 | F77: 20983903 | G77: 20983903 | H77: 3649094 | I77: 3649094 | J77: 0 | K77: 0 | L77: 0 | M77: 0 | N77: 0 | O77: 0 | P77: 0 | Q77: 0 | R77: 0 | S77: 0 | T77: 0 | U77: 0 | V77: 0 | W77: 0 | X77: =X11+X33-X55 -> 0 | Y77: 0 | Z77: =Z11+Z33-Z55 -> 0 | AA77: 0 | AB77: 0 | AC77: 0 | AD77: 0 | AE77: 0 | AF77: 0 | AG77: 0 | AH77: 0 | AI77: 0 | AJ77: 0 | AK77: 0 | AL77: =AL11+AL33-AL55 -> 0 | AM77: =AM11+AM33-AM55 -> 0 | AN77: 0 | AO77: =AO11+AO33-AO55 -> 0 | AP77: 0 | AQ77: 0 | AR77: =D77+F77+H77+J77+L77+N77+P77+R77+T77+V77+X77+Z77+AB77+AD77+AF77+AH77+AJ77+AL77+AN77+AP77 -> 24632997
B78: 立木竹 | D78: =D12+D34-D56 -> 0 | E78: 0 | F78: 0 | G78: 0 | H78: 0 | I78: 0 | J78: 0 | K78: 0 | L78: 0 | M78: 0 | N78: 0 | O78: 0 | P78: 0 | Q78: 0 | R78: 0 | S78: 0 | T78: 0 | U78: 0 | V78: 0 | W78: 0 | X78: =X12+X34-X56 -> 0 | Y78: 0 | Z78: 0 | AA78: 0 | AB78: 0 | AC78: 0 | AD78: 0 | AE78: 0 | AF78: 0 | AG78: 0 | AH78: 0 | AI78: 0 | AJ78: 0 | AK78: 0 | AL78: =AL12+AL34-AL56 -> 0 | AM78: =AM12+AM34-AM56 -> 0 | AN78: 0 | AO78: =AO12+AO34-AO56 -> 0 | AP78: 0 | AQ78: 0 | AR78: 0
B79: 建物 | D79: =D13+D35-D57 -> 0 | E79: 0 | F79: 213646765 | G79: 213646765 | H79: 21446984 | I79: 21446984 | J79: 0 | K79: 0 | L79: 0 | M79: 0 | N79: 0 | O79: 0 | P79: 0 | Q79: 0 | R79: 0 | S79: 0 | T79: 0 | U79: 0 | V79: 0 | W79: 0 | X79: =X13+X35-X57 -> 0 | Y79: 0 | Z79: 0 | AA79: 0 | AB79: 0 | AC79: 0 | AD79: 0 | AE79: 0 | AF79: 0 | AG79: 0 | AH79: 0 | AI79: 0 | AJ79: 0 | AK79: 0 | AL79: =AL13+AL35-AL57 -> 0 | AM79: =AM13+AM35-AM57 -> 0 | AN79: 0 | AO79: =AO13+AO35-AO57 -> 0 | AP79: 0 | AQ79: 0 | AR79: 235093749
B80: 工作物 | D80: =D14+D36-D58 -> 0 | E80: 0 | F80: 8274597 | G80: 8274597 | H80: 0 | I80: 0 | J80: 0 | K80: 0 | L80: 0 | M80: 0 | N80: 0 | O80: 0 | P80: 0 | Q80: 0 | R80: 0 | S80: 0 | T80: 0 | U80: 0 | V80: 0 | W80: 0 | X80: =X14+X36-X58 -> 0 | Y80: 0 | Z80: 0 | AA80: 0 | AB80: 0 | AC80: 0 | AD80: 0 | AE80: 0 | AF80: 0 | AG80: 0 | AH80: 0 | AI80: 0 | AJ80: 0 | AK80: 0 | AL80: =AL14+AL36-AL58 -> 0 | AM80: =AM14+AM36-AM58 -> 0 | AN80: 0 | AO80: =AO14+AO36-AO58 -> 0 | AP80: 0 | AQ80: 0 | AR80: 8274597
B81: 船舶 | D81: =D15+D37-D59 -> 165828800 | E81: 165828800 | F81: 172068750 | G81: 172068750 | H81: 0 | I81: 0 | J81: 0 | K81: 0 | L81: 0 | M81: 0 | N81: 0 | O81: 0 | P81: 0 | Q81: 0 | R81: 0 | S81: 0 | T81: 0 | U81: 0 | V81: 0 | W81: 0 | X81: =X15+X37-X59 -> 0 | Y81: 0 | Z81: 0 | AA81: 0 | AB81: 0 | AC81: 0 | AD81: 0 | AE81: 0 | AF81: 0 | AG81: 0 | AH81: 0 | AI81: 0 | AJ81: 0 | AK81: 0 | AL81: =AL15+AL37-AL59 -> 0 | AM81: =AM15+AM37-AM59 -> 0 | AN81: 0 | AO81: =AO15+AO37-AO59 -> 0 | AP81: 0 | AQ81: 0 | AR81: 337897550
B82: 浮標等 | D82: =D16+D38-D60 -> 0 | E82: 0 | F82: 0 | G82: 0 | H82: 0 | I82: 0 | J82: 0 | K82: 0 | L82: 0 | M82: 0 | N82: 0 | O82: 0 | P82: 0 | Q82: 0 | R82: 0 | S82: 0 | T82: 0 | U82: 0 | V82: 0 | W82: 0 | X82: =X16+X38-X60 -> 0 | Y82: 0 | Z82: 0 | AA82: 0 | AB82: 0 | AC82: 0 | AD82: 0 | AE82: 0 | AF82: 0 | AG82: 0 | AH82: 0 | AI82: 0 | AJ82: 0 | AK82: 0 | AL82: =AL16+AL38-AL60 -> 0 | AM82: =AM16+AM38-AM60 -> 0 | AN82: 0 | AO82: =AO16+AO38-AO60 -> 0 | AP82: 0 | AQ82: 0 | AR82: 0
B83: 航空機 | D83: =D17+D39-D61 -> 0 | E83: 0 | F83: 0 | G83: 0 | H83: 0 | I83: 0 | J83: 0 | K83: 0 | L83: 0 | M83: 0 | N83: 0 | O83: 0 | P83: 0 | Q83: 0 | R83: 0 | S83: 0 | T83: 0 | U83: 0 | V83: 0 | W83: 0 | X83: =X17+X39-X61 -> 0 | Y83: 0 | Z83: 0 | AA83: 0 | AB83: 0 | AC83: 0 | AD83: 0 | AE83: 0 | AF83: 0 | AG83: 0 | AH83: 0 | AI83: 0 | AJ83: 0 | AK83: 0 | AL83: =AL17+AL39-AL61 -> 0 | AM83: =AM17+AM39-AM61 -> 0 | AN83: 0 | AO83: =AO17+AO39-AO61 -> 0 | AP83: 0 | AQ83: 0 | AR83: 0
B84: その他 | D84: =D18+D40-D62 -> 0 | E84: 0 | F84: 0 | G84: 0 | H84: 0 | I84: 0 | J84: 0 | K84: 0 | L84: 0 | M84: 0 | N84: 0 | O84: 0 | P84: 0 | Q84: 0 | R84: 0 | S84: 0 | T84: 0 | U84: 0 | V84: 0 | W84: 0 | X84: =X18+X40-X62 -> 0 | Y84: 0 | Z84: 0 | AA84: 0 | AB84: 0 | AC84: 0 | AD84: 0 | AE84: 0 | AF84: 0 | AG84: 0 | AH84: 0 | AI84: 0 | AJ84: 0 | AK84: 0 | AL84: =AL18+AL40-AL62 -> 0 | AM84: =AM18+AM40-AM62 -> 0 | AN84: 0 | AO84: =AO18+AO40-AO62 -> 0 | AP84: 0 | AQ84: 0 | AR84: 0
B85: 建設仮勘定 | D85: =D19+D41-D63 -> 0 | E85: 0 | F85: 0 | G85: 0 | H85: 0 | I85: 0 | J85: 0 | K85: 0 | L85: 0 | M85: 0 | N85: 0 | O85: 0 | P85: 0 | Q85: 0 | R85: 0 | S85: 0 | T85: 0 | U85: 0 | V85: 0 | W85: 0 | X85: =X19+X41-X63 -> 0 | Y85: 0 | Z85: 0 | AA85: 0 | AB85: 0 | AC85: 0 | AD85: 0 | AE85: 0 | AF85: 0 | AG85: 0 | AH85: 0 | AI85: 0 | AJ85: 0 | AK85: 0 | AL85: =AL19+AL41-AL63 -> 0 | AM85: =AM19+AM41-AM63 -> 0 | AN85: 0 | AO85: =AO19+AO41-AO63 -> 0 | AP85: 0 | AQ85: 0 | AR85: 0
B86: インフラ資産
B87: 土地 | D87: =D21+D43-D65 -> 0 | E87: 0 | F87: 0 | G87: 0 | H87: 0 | I87: 0 | J87: 0 | K87: 0 | L87: 0 | M87: 0 | N87: 0 | O87: 0 | P87: 0 | Q87: 0 | R87: 0 | S87: 0 | T87: 0 | U87: 0 | V87: 0 | W87: 0 | X87: =X21+X43-X65 -> 0 | Y87: 0 | Z87: =Z21+Z43-Z65 -> 0 | AA87: 0 | AB87: 0 | AC87: 0 | AD87: 0 | AE87: 0 | AF87: 0 | AG87: 0 | AH87: 0 | AI87: 0 | AJ87: 0 | AK87: 0 | AL87: =AL21+AL43-AL65 -> 0 | AM87: =AM21+AM43-AM65 -> 0 | AN87: 0 | AO87: =AO21+AO43-AO65 -> 0 | AP87: 0 | AQ87: 0 | AR87: =D87+F87+H87+J87+L87+N87+P87+R87+T87+V87+X87+Z87+AB87+AD87+AF87+AH87+AJ87+AL87+AN87+AP87 -> 0
B88: 建物 | D88: =D22+D44-D66 -> 0 | E88: 0 | F88: 0 | G88: 0 | H88: 0 | I88: 0 | J88: 0 | K88: 0 | L88: 0 | M88: 0 | N88: 0 | O88: 0 | P88: 0 | Q88: 0 | R88: 0 | S88: 0 | T88: 0 | U88: 0 | V88: 0 | W88: 0 | X88: =X22+X44-X66 -> 0 | Y88: 0 | Z88: 0 | AA88: 0 | AB88: 0 | AC88: 0 | AD88: 0 | AE88: 0 | AF88: 0 | AG88: 0 | AH88: 0 | AI88: 0 | AJ88: 0 | AK88: 0 | AL88: =AL22+AL44-AL66 -> 0 | AM88: =AM22+AM44-AM66 -> 0 | AN88: 0 | AO88: =AO22+AO44-AO66 -> 0 | AP88: 0 | AQ88: 0 | AR88: 0
B89: 工作物 | D89: =D23+D45-D67 -> 0 | E89: 0 | F89: 0 | G89: 0 | H89: 0 | I89: 0 | J89: 0 | K89: 0 | L89: 0 | M89: 0 | N89: 0 | O89: 0 | P89: 0 | Q89: 0 | R89: 0 | S89: 0 | T89: 0 | U89: 0 | V89: 0 | W89: 0 | X89: =X23+X45-X67 -> 0 | Y89: 0 | Z89: 0 | AA89: 0 | AB89: 0 | AC89: 0 | AD89: 0 | AE89: 0 | AF89: 0 | AG89: 0 | AH89: 0 | AI89: 0 | AJ89: 0 | AK89: 0 | AL89: =AL23+AL45-AL67 -> 0 | AM89: =AM23+AM45-AM67 -> 0 | AN89: 0 | AO89: =AO23+AO45-AO67 -> 0 | AP89: 0 | AQ89: 0 | AR89: 0
B90: その他 | D90: =D24+D46-D68 -> 0 | E90: 0 | F90: 0 | G90: 0 | H90: 0 | I90: 0 | J90: 0 | K90: 0 | L90: 0 | M90: 0 | N90: 0 | O90: 0 | P90: 0 | Q90: 0 | R90: 0 | S90: 0 | T90: 0 | U90: 0 | V90: 0 | W90: 0 | X90: =X24+X46-X68 -> 0 | Y90: 0 | Z90: 0 | AA90: 0 | AB90: 0 | AC90: 0 | AD90: 0 | AE90: 0 | AF90: 0 | AG90: 0 | AH90: 0 | AI90: 0 | AJ90: 0 | AK90: 0 | AL90: =AL24+AL46-AL68 -> 0 | AM90: =AM24+AM46-AM68 -> 0 | AN90: 0 | AO90: =AO24+AO46-AO68 -> 0 | AP90: 0 | AQ90: 0 | AR90: 0
B91: 建設仮勘定 | D91: =D25+D47-D69 -> 0 | E91: 0 | F91: 0 | G91: 0 | H91: 0 | I91: 0 | J91: 0 | K91: 0 | L91: 0 | M91: 0 | N91: 0 | O91: 0 | P91: 0 | Q91: 0 | R91: 0 | S91: 0 | T91: 0 | U91: 0 | V91: 0 | W91: 0 | X91: =X25+X47-X69 -> 0 | Y91: 0 | Z91: 0 | AA91: 0 | AB91: 0 | AC91: 0 | AD91: 0 | AE91: 0 | AF91: 0 | AG91: 0 | AH91: 0 | AI91: 0 | AJ91: 0 | AK91: 0 | AL91: =AL25+AL47-AL69 -> 0 | AM91: =AM25+AM47-AM69 -> 0 | AN91: 0 | AO91: =AO25+AO47-AO69 -> 0 | AP91: 0 | AQ91: 0 | AR91: 0
B92: 物品 | D92: =D26+D48-D70 -> 1546904 | E92: 1546904 | F92: 100899609 | G92: 100899609 | H92: 12581 | I92: 12581 | J92: 29119 | K92: 29119 | L92: 6644792 | M92: =M26+M48-M70 -> 6644792 | N92: =N26+N48-N70 -> 0 | O92: =O26+O48-O70 -> 0 | P92: =P26+P48-P70 -> 0 | Q92: 0 | R92: 0 | S92: 0 | T92: 0 | U92: 0 | V92: 0 | W92: 0 | X92: =X26+X48-X70 -> 0 | Y92: 0 | Z92: 0 | AA92: 0 | AB92: 0 | AC92: 0 | AD92: 0 | AE92: 0 | AF92: 0 | AG92: =AG26+AG48-AG70 -> 0 | AH92: 0 | AI92: =AI26+AI48-AI70 -> 0 | AJ92: 0 | AK92: 0 | AL92: =AL26+AL48-AL70 -> 0 | AM92: =AM26+AM48-AM70 -> 0 | AN92: 0 | AO92: =AO26+AO48-AO70 -> 0 | AP92: 0 | AQ92: 0 | AR92: 109133005
B93: 合計 | D93: =SUM(D76:D92) -> 167375704 | E93: =SUM(E76:E92) -> 167375704 | F93: 515873624 | G93: 515873624 | H93: 25108659 | I93: 25108659 | J93: 29119 | K93: 29119 | L93: 6644792 | M93: 6644792 | N93: 0 | O93: 0 | P93: 0 | Q93: 0 | R93: =SUM(R76:R92) -> 0 | S93: =SUM(S76:S92) -> 0 | T93: 0 | U93: 0 | V93: 0 | W93: 0 | X93: =SUM(X76:X92) -> 0 | Y93: =SUM(Y76:Y92) -> 0 | Z93: =SUM(Z76:Z92) -> 0 | AA93: 0 | AB93: 0 | AC93: 0 | AD93: 0 | AE93: 0 | AF93: 0 | AG93: 0 | AH93: 0 | AI93: =SUM(AI76:AI92) -> 0 | AJ93: 0 | AK93: 0 | AL93: 0 | AM93: 0 | AN93: 0 | AO93: =SUM(AO76:AO92) -> 0 | AP93: 0 | AQ93: =SUM(AQ76:AQ92) -> 0 | AR93: 715031898
B95: 本年度末減価償却累計額（Ｅ）
B96: 区分 | D96: 連結(比例) | E96: 連結(比例) | F96: 連結(比例) | G96: 連結(全部) | H96: 連結(比例) | I96: 連結(全部) | J96: 連結(比例) | K96: 連結(全部) | L96: 連結(比例) | M96: 連結(全部) | N96: 連結(比例) | O96: 連結(全部) | P96: 連結(比例) | Q96: 連結(全部) | R96: 連結(比例) | S96: 連結(全部) | T96: 連結(比例) | U96: 連結(全部) | V96: 連結(比例) | W96: 連結(全部) | X96: 連結(比例) | Y96: 連結(比例) | Z96: 連結(比例) | AA96: 連結(全部) | AB96: 連結(比例) | AC96: 連結(全部) | AD96: 連結(比例) | AE96: 連結(全部) | AF96: 連結(比例) | AG96: 連結(全部) | AH96: 連結(比例) | AI96: 連結(全部) | AJ96: 連結(比例) | AK96: 連結(全部) | AL96: 連結(比例) | AM96: 連結(全部) | AN96: 連結(比例) | AO96: 連結(全部) | AP96: 連結(比例) | AQ96: 連結(全部) | AR96: 連結会計 計
B97: 名称 | D97: =D9 -> 島前町村組合 | F97: =F9 -> 隠岐広域連合 | H97: =H9 -> 総合事務組合 | J97: =J9 -> 後期高齢 | L97: =L9 -> 知夫里島 | N97: =N9 -> 0 | P97: =P9 -> 0 | R97: =R9 -> 0 | T97: =T9 -> 0 | V97: =V9 -> 0 | X97: =X9 -> 0 | Z97: =Z9 -> 0 | AB97: =AB9 -> 0 | AD97: =AD9 -> 0 | AF97: =AF9 -> 0 | AH97: =AH9 -> 0 | AJ97: =AJ9 -> 0 | AL97: =AL9 -> 0 | AN97: =AN9 -> 0 | AP97: =AP9 -> 0
B98: 事業用資産
B99: 土地
B100: 立木竹
B101: 建物 | D101: =ROUND(D7*E101,0) -> 0 | F101: =ROUND(F7*G101,0) -> 104100812 | G101: 104100812 | H101: =ROUND(H7*I101,0) -> 11331156 | I101: 11331156 | J101: =ROUND(J7*K101,0) -> 0 | L101: =ROUND(L7*M101,0) -> 0 | N101: =ROUND(N7*O101,0) -> 0 | P101: =ROUND(P7*Q101,0) -> 0 | R101: =ROUND(R7*S101,0) -> 0 | T101: =ROUND(T7*U101,0) -> 0 | V101: =ROUND(V7*W101,0) -> 0 | X101: =ROUND(X7*Y101,0) -> 0 | Z101: =ROUND(Z7*AA101,0) -> 0 | AB101: =ROUND(AB7*AC101,0) -> 0 | AD101: =ROUND(AD7*AE101,0) -> 0 | AF101: =ROUND(AF7*AG101,0) -> 0 | AH101: =ROUND(AH7*AI101,0) -> 0 | AJ101: =ROUND(AJ7*AK101,0) -> 0 | AL101: =ROUND(AL7*AM101,0) -> 0 | AN101: =ROUND(AN7*AO101,0) -> 0 | AP101: =ROUND(AP7*AQ101,0) -> 0 | AR101: =D101+F101+H101+J101+L101+N101+P101+R101+T101+V101+X101+Z101+AB101+AD101+AF101+AH101+AJ101+AL101+AN101+AP101 -> 115431968
B102: 工作物 | D102: =ROUND(D7*E102,0) -> 0 | F102: =ROUND(F7*G102,0) -> 3428413 | G102: 3428413 | H102: =ROUND(H7*I102,0) -> 0 | J102: =ROUND(J7*K102,0) -> 0 | L102: =ROUND(L7*M102,0) -> 0 | N102: =ROUND(N7*O102,0) -> 0 | P102: =ROUND(P7*Q102,0) -> 0 | R102: =ROUND(R7*S102,0) -> 0 | T102: =ROUND(T7*U102,0) -> 0 | V102: =ROUND(V7*W102,0) -> 0 | X102: =ROUND(X7*Y102,0) -> 0 | Z102: =ROUND(Z7*AA102,0) -> 0 | AB102: =ROUND(AB7*AC102,0) -> 0 | AD102: =ROUND(AD7*AE102,0) -> 0 | AF102: =ROUND(AF7*AG102,0) -> 0 | AH102: =ROUND(AH7*AI102,0) -> 0 | AJ102: =ROUND(AJ7*AK102,0) -> 0 | AL102: =ROUND(AL7*AM102,0) -> 0 | AN102: =ROUND(AN7*AO102,0) -> 0 | AP102: =ROUND(AP7*AQ102,0) -> 0 | AR102: 3428413
B103: 船舶 | D103: =ROUND(D7*E103,0) -> 147425100 | E103: 147425100 | F103: =ROUND(F7*G103,0) -> 165884250 | G103: 165884250 | H103: =ROUND(H7*I103,0) -> 0 | J103: =ROUND(J7*K103,0) -> 0 | L103: =ROUND(L7*M103,0) -> 0 | N103: =ROUND(N7*O103,0) -> 0 | P103: =ROUND(P7*Q103,0) -> 0 | R103: =ROUND(R7*S103,0) -> 0 | T103: =ROUND(T7*U103,0) -> 0 | V103: =ROUND(V7*W103,0) -> 0 | X103: =ROUND(X7*Y103,0) -> 0 | Z103: =ROUND(Z7*AA103,0) -> 0 | AB103: =ROUND(AB7*AC103,0) -> 0 | AD103: =ROUND(AD7*AE103,0) -> 0 | AF103: =ROUND(AF7*AG103,0) -> 0 | AH103: =ROUND(AH7*AI103,0) -> 0 | AJ103: =ROUND(AJ7*AK103,0) -> 0 | AL103: =ROUND(AL7*AM103,0) -> 0 | AN103: =ROUND(AN7*AO103,0) -> 0 | AP103: =ROUND(AP7*AQ103,0) -> 0 | AR103: 313309350
B104: 浮標等 | D104: =ROUND(D7*E104,0) -> 0 | F104: =ROUND(F7*G104,0) -> 0 | H104: =ROUND(H7*I104,0) -> 0 | J104: =ROUND(J7*K104,0) -> 0 | L104: =ROUND(L7*M104,0) -> 0 | N104: =ROUND(N7*O104,0) -> 0 | P104: =ROUND(P7*Q104,0) -> 0 | R104: =ROUND(R7*S104,0) -> 0 | T104: =ROUND(T7*U104,0) -> 0 | V104: =ROUND(V7*W104,0) -> 0 | X104: =ROUND(X7*Y104,0) -> 0 | Z104: =ROUND(Z7*AA104,0) -> 0 | AB104: =ROUND(AB7*AC104,0) -> 0 | AD104: =ROUND(AD7*AE104,0) -> 0 | AF104: =ROUND(AF7*AG104,0) -> 0 | AH104: =ROUND(AH7*AI104,0) -> 0 | AJ104: =ROUND(AJ7*AK104,0) -> 0 | AL104: =ROUND(AL7*AM104,0) -> 0 | AN104: =ROUND(AN7*AO104,0) -> 0 | AP104: =ROUND(AP7*AQ104,0) -> 0 | AR104: 0
B105: 航空機 | D105: =ROUND(D7*E105,0) -> 0 | F105: =ROUND(F7*G105,0) -> 0 | H105: =ROUND(H7*I105,0) -> 0 | J105: =ROUND(J7*K105,0) -> 0 | L105: =ROUND(L7*M105,0) -> 0 | N105: =ROUND(N7*O105,0) -> 0 | P105: =ROUND(P7*Q105,0) -> 0 | R105: =ROUND(R7*S105,0) -> 0 | T105: =ROUND(T7*U105,0) -> 0 | V105: =ROUND(V7*W105,0) -> 0 | X105: =ROUND(X7*Y105,0) -> 0 | Z105: =ROUND(Z7*AA105,0) -> 0 | AB105: =ROUND(AB7*AC105,0) -> 0 | AD105: =ROUND(AD7*AE105,0) -> 0 | AF105: =ROUND(AF7*AG105,0) -> 0 | AH105: =ROUND(AH7*AI105,0) -> 0 | AJ105: =ROUND(AJ7*AK105,0) -> 0 | AL105: =ROUND(AL7*AM105,0) -> 0 | AN105: =ROUND(AN7*AO105,0) -> 0 | AP105: =ROUND(AP7*AQ105,0) -> 0 | AR105: 0
B106: その他 | D106: =ROUND(D7*E106,0) -> 0 | F106: =ROUND(F7*G106,0) -> 0 | H106: =ROUND(H7*I106,0) -> 0 | J106: =ROUND(J7*K106,0) -> 0 | L106: =ROUND(L7*M106,0) -> 0 | N106: =ROUND(N7*O106,0) -> 0 | P106: =ROUND(P7*Q106,0) -> 0 | R106: =ROUND(R7*S106,0) -> 0 | T106: =ROUND(T7*U106,0) -> 0 | V106: =ROUND(V7*W106,0) -> 0 | X106: =ROUND(X7*Y106,0) -> 0 | Z106: =ROUND(Z7*AA106,0) -> 0 | AB106: =ROUND(AB7*AC106,0) -> 0 | AD106: =ROUND(AD7*AE106,0) -> 0 | AF106: =ROUND(AF7*AG106,0) -> 0 | AH106: =ROUND(AH7*AI106,0) -> 0 | AJ106: =ROUND(AJ7*AK106,0) -> 0 | AL106: =ROUND(AL7*AM106,0) -> 0 | AN106: =ROUND(AN7*AO106,0) -> 0 | AP106: =ROUND(AP7*AQ106,0) -> 0 | AR106: 0
B107: 建設仮勘定
B108: インフラ資産
B109: 土地
B110: 建物 | D110: =ROUND(D7*E110,0) -> 0 | F110: =ROUND(F7*G110,0) -> 0 | H110: =ROUND(H7*I110,0) -> 0 | J110: =ROUND(J7*K110,0) -> 0 | L110: =ROUND(L7*M110,0) -> 0 | N110: =ROUND(N7*O110,0) -> 0 | P110: =ROUND(P7*Q110,0) -> 0 | R110: =ROUND(R7*S110,0) -> 0 | T110: =ROUND(T7*U110,0) -> 0 | V110: =ROUND(V7*W110,0) -> 0 | X110: =ROUND(X7*Y110,0) -> 0 | Z110: =ROUND(Z7*AA110,0) -> 0 | AB110: =ROUND(AB7*AC110,0) -> 0 | AD110: =ROUND(AD7*AE110,0) -> 0 | AF110: =ROUND(AF7*AG110,0) -> 0 | AH110: =ROUND(AH7*AI110,0) -> 0 | AJ110: =ROUND(AJ7*AK110,0) -> 0 | AL110: =ROUND(AL7*AM110,0) -> 0 | AN110: =ROUND(AN7*AO110,0) -> 0 | AP110: =ROUND(AP7*AQ110,0) -> 0 | AR110: =D110+F110+H110+J110+L110+N110+P110+R110+T110+V110+X110+Z110+AB110+AD110+AF110+AH110+AJ110+AL110+AN110+AP110 -> 0
B111: 工作物 | D111: =ROUND(D7*E111,0) -> 0 | F111: =ROUND(F7*G111,0) -> 0 | H111: =ROUND(H7*I111,0) -> 0 | J111: =ROUND(J7*K111,0) -> 0 | L111: =ROUND(L7*M111,0) -> 0 | N111: =ROUND(N7*O111,0) -> 0 | P111: =ROUND(P7*Q111,0) -> 0 | R111: =ROUND(R7*S111,0) -> 0 | T111: =ROUND(T7*U111,0) -> 0 | V111: =ROUND(V7*W111,0) -> 0 | X111: =ROUND(X7*Y111,0) -> 0 | Z111: =ROUND(Z7*AA111,0) -> 0 | AB111: =ROUND(AB7*AC111,0) -> 0 | AD111: =ROUND(AD7*AE111,0) -> 0 | AF111: =ROUND(AF7*AG111,0) -> 0 | AH111: =ROUND(AH7*AI111,0) -> 0 | AJ111: =ROUND(AJ7*AK111,0) -> 0 | AL111: =ROUND(AL7*AM111,0) -> 0 | AN111: =ROUND(AN7*AO111,0) -> 0 | AP111: =ROUND(AP7*AQ111,0) -> 0 | AR111: 0
B112: その他 | D112: =ROUND(D7*E112,0) -> 0 | F112: =ROUND(F7*G112,0) -> 0 | H112: =ROUND(H7*I112,0) -> 0 | J112: =ROUND(J7*K112,0) -> 0 | L112: =ROUND(L7*M112,0) -> 0 | N112: =ROUND(N7*O112,0) -> 0 | P112: =ROUND(P7*Q112,0) -> 0 | R112: =ROUND(R7*S112,0) -> 0 | T112: =ROUND(T7*U112,0) -> 0 | V112: =ROUND(V7*W112,0) -> 0 | X112: =ROUND(X7*Y112,0) -> 0 | Z112: =ROUND(Z7*AA112,0) -> 0 | AB112: =ROUND(AB7*AC112,0) -> 0 | AD112: =ROUND(AD7*AE112,0) -> 0 | AF112: =ROUND(AF7*AG112,0) -> 0 | AH112: =ROUND(AH7*AI112,0) -> 0 | AJ112: =ROUND(AJ7*AK112,0) -> 0 | AL112: =ROUND(AL7*AM112,0) -> 0 | AN112: =ROUND(AN7*AO112,0) -> 0 | AP112: =ROUND(AP7*AQ112,0) -> 0 | AR112: 0
B113: 建設仮勘定
B114: 物品 | D114: =ROUND(D7*E114,0) -> 928142 | E114: 928142 | F114: =ROUND(F7*G114,0) -> 72663207 | G114: 72663207 | H114: =ROUND(H7*I114,0) -> 10683 | I114: 10683 | J114: =ROUND(J7*K114,0) -> 28210 | K114: =25943+2267 -> 28210 | L114: =ROUND(L7*M114,0) -> 3635731 | M114: 3635731 | N114: =ROUND(N7*O114,0) -> 0 | P114: =ROUND(P7*Q114,0) -> 0 | R114: =ROUND(R7*S114,0) -> 0 | T114: =ROUND(T7*U114,0) -> 0 | V114: =ROUND(V7*W114,0) -> 0 | X114: =ROUND(X7*Y114,0) -> 0 | Z114: =ROUND(Z7*AA114,0) -> 0 | AB114: =ROUND(AB7*AC114,0) -> 0 | AD114: =ROUND(AD7*AE114,0) -> 0 | AF114: =ROUND(AF7*AG114,0) -> 0 | AH114: =ROUND(AH7*AI114,0) -> 0 | AJ114: =ROUND(AJ7*AK114,0) -> 0 | AL114: =ROUND(AL7*AM114,0) -> 0 | AN114: =ROUND(AN7*AO114,0) -> 0 | AP114: =ROUND(AP7*AQ114,0) -> 0 | AR114: 77265973
B115: 合計 | D115: =SUM(D98:D114) -> 148353242 | E115: 148353242 | F115: 346076682 | G115: 346076682 | H115: 11341839 | I115: 11341839 | J115: 28210 | K115: 28210 | L115: 3635731 | M115: 3635731 | N115: 0 | O115: 0 | P115: 0 | Q115: 0 | R115: 0 | S115: 0 | T115: 0 | U115: 0 | V115: 0 | W115: 0 | X115: =SUM(X98:X114) -> 0 | Y115: =SUM(Y98:Y114) -> 0 | Z115: =SUM(Z98:Z114) -> 0 | AA115: 0 | AB115: 0 | AC115: 0 | AD115: 0 | AE115: 0 | AF115: 0 | AG115: 0 | AH115: 0 | AI115: =SUM(AI98:AI114) -> 0 | AJ115: 0 | AK115: 0 | AL115: 0 | AM115: 0 | AN115: 0 | AO115: =SUM(AO98:AO114) -> 0 | AP115: 0 | AQ115: =SUM(AQ98:AQ114) -> 0 | AR115: 509435704
B117: 本年度償却額（Ｆ）
B118: 区分 | D118: 連結(比例) | E118: 連結(比例) | F118: 連結(比例) | G118: 連結(全部) | H118: 連結(比例) | I118: 連結(全部) | J118: 連結(比例) | K118: 連結(全部) | L118: 連結(比例) | M118: 連結(全部) | N118: 連結(比例) | O118: 連結(全部) | P118: 連結(比例) | Q118: 連結(全部) | R118: 連結(比例) | S118: 連結(全部) | T118: 連結(比例) | U118: 連結(全部) | V118: 連結(比例) | W118: 連結(全部) | X118: 連結(比例) | Y118: 連結(比例) | Z118: 連結(比例) | AA118: 連結(全部) | AB118: 連結(比例) | AC118: 連結(全部) | AD118: 連結(比例) | AE118: 連結(全部) | AF118: 連結(比例) | AG118: 連結(全部) | AH118: 連結(比例) | AI118: 連結(全部) | AJ118: 連結(比例) | AK118: 連結(全部) | AL118: 連結(比例) | AM118: 連結(全部) | AN118: 連結(比例) | AO118: 連結(全部) | AP118: 連結(比例) | AQ118: 連結(全部) | AR118: 連結会計 計
B119: 名称 | D119: =D9 -> 島前町村組合 | F119: =F9 -> 隠岐広域連合 | H119: =H9 -> 総合事務組合 | J119: =J9 -> 後期高齢 | L119: =L9 -> 知夫里島 | N119: =N9 -> 0 | P119: =P9 -> 0 | R119: =R9 -> 0 | T119: =T9 -> 0 | V119: =V9 -> 0 | X119: =X9 -> 0 | Z119: =Z9 -> 0 | AB119: =AB9 -> 0 | AD119: =AD9 -> 0 | AF119: =AF9 -> 0 | AH119: =AH9 -> 0 | AJ119: =AJ9 -> 0 | AL119: =AL9 -> 0 | AN119: =AN9 -> 0 | AP119: =AP9 -> 0
B120: 事業用資産
B121: 土地
B122: 立木竹
B123: 建物 | D123: =ROUND(D7*E123,0) -> 0 | F123: =ROUND(F7*G123,0) -> 5788355 | G123: =5788354+1 -> 5788355 | H123: =ROUND(H7*I123,0) -> 428940 | I123: 428940 | J123: =ROUND(J7*K123,0) -> 0 | L123: =ROUND(L7*M123,0) -> 0 | N123: =ROUND(N7*O123,0) -> 0 | P123: =ROUND(P7*Q123,0) -> 0 | R123: =ROUND(R7*S123,0) -> 0 | T123: =ROUND(T7*U123,0) -> 0 | V123: =ROUND(V7*W123,0) -> 0 | X123: =ROUND(X7*Y123,0) -> 0 | Z123: =ROUND(Z7*AA123,0) -> 0 | AB123: =ROUND(AB7*AC123,0) -> 0 | AD123: =ROUND(AD7*AE123,0) -> 0 | AF123: =ROUND(AF7*AG123,0) -> 0 | AH123: =ROUND(AH7*AI123,0) -> 0 | AJ123: =ROUND(AJ7*AK123,0) -> 0 | AL123: =ROUND(AL7*AM123,0) -> 0 | AN123: =ROUND(AN7*AO123,0) -> 0 | AP123: =ROUND(AP7*AQ123,0) -> 0 | AR123: =D123+F123+H123+J123+L123+N123+P123+R123+T123+V123+X123+Z123+AB123+AD123+AF123+AH123+AJ123+AL123+AN123+AP123 -> 6217295
B124: 工作物 | D124: =ROUND(D7*E124,0) -> 0 | F124: =ROUND(F7*G124,0) -> 469813 | G124: 469813 | H124: =ROUND(H7*I124,0) -> 0 | J124: =ROUND(J7*K124,0) -> 0 | L124: =ROUND(L7*M124,0) -> 0 | N124: =ROUND(N7*O124,0) -> 0 | P124: =ROUND(P7*Q124,0) -> 0 | R124: =ROUND(R7*S124,0) -> 0 | T124: =ROUND(T7*U124,0) -> 0 | V124: =ROUND(V7*W124,0) -> 0 | X124: =ROUND(X7*Y124,0) -> 0 | Z124: =ROUND(Z7*AA124,0) -> 0 | AB124: =ROUND(AB7*AC124,0) -> 0 | AD124: =ROUND(AD7*AE124,0) -> 0 | AF124: =ROUND(AF7*AG124,0) -> 0 | AH124: =ROUND(AH7*AI124,0) -> 0 | AJ124: =ROUND(AJ7*AK124,0) -> 0 | AL124: =ROUND(AL7*AM124,0) -> 0 | AN124: =ROUND(AN7*AO124,0) -> 0 | AP124: =ROUND(AP7*AQ124,0) -> 0 | AR124: 469813
B125: 船舶 | D125: =ROUND(D7*E125,0) -> 983451 | E125: 983451 | F125: =ROUND(F7*G125,0) -> 14204400 | G125: 14204400 | H125: =ROUND(H7*I125,0) -> 0 | J125: =ROUND(J7*K125,0) -> 0 | L125: =ROUND(L7*M125,0) -> 0 | N125: =ROUND(N7*O125,0) -> 0 | P125: =ROUND(P7*Q125,0) -> 0 | R125: =ROUND(R7*S125,0) -> 0 | T125: =ROUND(T7*U125,0) -> 0 | V125: =ROUND(V7*W125,0) -> 0 | X125: =ROUND(X7*Y125,0) -> 0 | Z125: =ROUND(Z7*AA125,0) -> 0 | AB125: =ROUND(AB7*AC125,0) -> 0 | AD125: =ROUND(AD7*AE125,0) -> 0 | AF125: =ROUND(AF7*AG125,0) -> 0 | AH125: =ROUND(AH7*AI125,0) -> 0 | AJ125: =ROUND(AJ7*AK125,0) -> 0 | AL125: =ROUND(AL7*AM125,0) -> 0 | AN125: =ROUND(AN7*AO125,0) -> 0 | AP125: =ROUND(AP7*AQ125,0) -> 0 | AR125: 15187851
B126: 浮標等 | D126: =ROUND(D7*E126,0) -> 0 | F126: =ROUND(F7*G126,0) -> 0 | H126: =ROUND(H7*I126,0) -> 0 | J126: =ROUND(J7*K126,0) -> 0 | L126: =ROUND(L7*M126,0) -> 0 | N126: =ROUND(N7*O126,0) -> 0 | P126: =ROUND(P7*Q126,0) -> 0 | R126: =ROUND(R7*S126,0) -> 0 | T126: =ROUND(T7*U126,0) -> 0 | V126: =ROUND(V7*W126,0) -> 0 | X126: =ROUND(X7*Y126,0) -> 0 | Z126: =ROUND(Z7*AA126,0) -> 0 | AB126: =ROUND(AB7*AC126,0) -> 0 | AD126: =ROUND(AD7*AE126,0) -> 0 | AF126: =ROUND(AF7*AG126,0) -> 0 | AH126: =ROUND(AH7*AI126,0) -> 0 | AJ126: =ROUND(AJ7*AK126,0) -> 0 | AL126: =ROUND(AL7*AM126,0) -> 0 | AN126: =ROUND(AN7*AO126,0) -> 0 | AP126: =ROUND(AP7*AQ126,0) -> 0 | AR126: 0
B127: 航空機 | D127: =ROUND(D7*E127,0) -> 0 | F127: =ROUND(F7*G127,0) -> 0 | H127: =ROUND(H7*I127,0) -> 0 | J127: =ROUND(J7*K127,0) -> 0 | L127: =ROUND(L7*M127,0) -> 0 | N127: =ROUND(N7*O127,0) -> 0 | P127: =ROUND(P7*Q127,0) -> 0 | R127: =ROUND(R7*S127,0) -> 0 | T127: =ROUND(T7*U127,0) -> 0 | V127: =ROUND(V7*W127,0) -> 0 | X127: =ROUND(X7*Y127,0) -> 0 | Z127: =ROUND(Z7*AA127,0) -> 0 | AB127: =ROUND(AB7*AC127,0) -> 0 | AD127: =ROUND(AD7*AE127,0) -> 0 | AF127: =ROUND(AF7*AG127,0) -> 0 | AH127: =ROUND(AH7*AI127,0) -> 0 | AJ127: =ROUND(AJ7*AK127,0) -> 0 | AL127: =ROUND(AL7*AM127,0) -> 0 | AN127: =ROUND(AN7*AO127,0) -> 0 | AP127: =ROUND(AP7*AQ127,0) -> 0 | AR127: 0
B128: その他 | D128: =ROUND(D7*E128,0) -> 0 | F128: =ROUND(F7*G128,0) -> 0 | H128: =ROUND(H7*I128,0) -> 0 | J128: =ROUND(J7*K128,0) -> 0 | L128: =ROUND(L7*M128,0) -> 0 | N128: =ROUND(N7*O128,0) -> 0 | P128: =ROUND(P7*Q128,0) -> 0 | R128: =ROUND(R7*S128,0) -> 0 | T128: =ROUND(T7*U128,0) -> 0 | V128: =ROUND(V7*W128,0) -> 0 | X128: =ROUND(X7*Y128,0) -> 0 | Z128: =ROUND(Z7*AA128,0) -> 0 | AB128: =ROUND(AB7*AC128,0) -> 0 | AD128: =ROUND(AD7*AE128,0) -> 0 | AF128: =ROUND(AF7*AG128,0) -> 0 | AH128: =ROUND(AH7*AI128,0) -> 0 | AJ128: =ROUND(AJ7*AK128,0) -> 0 | AL128: =ROUND(AL7*AM128,0) -> 0 | AN128: =ROUND(AN7*AO128,0) -> 0 | AP128: =ROUND(AP7*AQ128,0) -> 0 | AR128: 0
B129: 建設仮勘定
B130: インフラ資産
B131: 土地
B132: 建物 | D132: =ROUND(D7*E132,0) -> 0 | F132: =ROUND(F7*G132,0) -> 0 | H132: =ROUND(H7*I132,0) -> 0 | J132: =ROUND(J7*K132,0) -> 0 | L132: =ROUND(L7*M132,0) -> 0 | N132: =ROUND(N7*O132,0) -> 0 | P132: =ROUND(P7*Q132,0) -> 0 | R132: =ROUND(R7*S132,0) -> 0 | T132: =ROUND(T7*U132,0) -> 0 | V132: =ROUND(V7*W132,0) -> 0 | X132: =ROUND(X7*Y132,0) -> 0 | Z132: =ROUND(Z7*AA132,0) -> 0 | AB132: =ROUND(AB7*AC132,0) -> 0 | AD132: =ROUND(AD7*AE132,0) -> 0 | AF132: =ROUND(AF7*AG132,0) -> 0 | AH132: =ROUND(AH7*AI132,0) -> 0 | AJ132: =ROUND(AJ7*AK132,0) -> 0 | AL132: =ROUND(AL7*AM132,0) -> 0 | AN132: =ROUND(AN7*AO132,0) -> 0 | AP132: =ROUND(AP7*AQ132,0) -> 0 | AR132: =D132+F132+H132+J132+L132+N132+P132+R132+T132+V132+X132+Z132+AB132+AD132+AF132+AH132+AJ132+AL132+AN132+AP132 -> 0
B133: 工作物 | D133: =ROUND(D7*E133,0) -> 0 | F133: =ROUND(F7*G133,0) -> 0 | H133: =ROUND(H7*I133,0) -> 0 | J133: =ROUND(J7*K133,0) -> 0 | L133: =ROUND(L7*M133,0) -> 0 | N133: =ROUND(N7*O133,0) -> 0 | P133: =ROUND(P7*Q133,0) -> 0 | R133: =ROUND(R7*S133,0) -> 0 | T133: =ROUND(T7*U133,0) -> 0 | V133: =ROUND(V7*W133,0) -> 0 | X133: =ROUND(X7*Y133,0) -> 0 | Z133: =ROUND(Z7*AA133,0) -> 0 | AB133: =ROUND(AB7*AC133,0) -> 0 | AD133: =ROUND(AD7*AE133,0) -> 0 | AF133: =ROUND(AF7*AG133,0) -> 0 | AH133: =ROUND(AH7*AI133,0) -> 0 | AJ133: =ROUND(AJ7*AK133,0) -> 0 | AL133: =ROUND(AL7*AM133,0) -> 0 | AN133: =ROUND(AN7*AO133,0) -> 0 | AP133: =ROUND(AP7*AQ133,0) -> 0 | AR133: 0
B134: その他 | D134: =ROUND(D7*E134,0) -> 0 | F134: =ROUND(F7*G134,0) -> 0 | H134: =ROUND(H7*I134,0) -> 0 | J134: =ROUND(J7*K134,0) -> 0 | L134: =ROUND(L7*M134,0) -> 0 | N134: =ROUND(N7*O134,0) -> 0 | P134: =ROUND(P7*Q134,0) -> 0 | R134: =ROUND(R7*S134,0) -> 0 | T134: =ROUND(T7*U134,0) -> 0 | V134: =ROUND(V7*W134,0) -> 0 | X134: =ROUND(X7*Y134,0) -> 0 | Z134: =ROUND(Z7*AA134,0) -> 0 | AB134: =ROUND(AB7*AC134,0) -> 0 | AD134: =ROUND(AD7*AE134,0) -> 0 | AF134: =ROUND(AF7*AG134,0) -> 0 | AH134: =ROUND(AH7*AI134,0) -> 0 | AJ134: =ROUND(AJ7*AK134,0) -> 0 | AL134: =ROUND(AL7*AM134,0) -> 0 | AN134: =ROUND(AN7*AO134,0) -> 0 | AP134: =ROUND(AP7*AQ134,0) -> 0 | AR134: 0
B135: 建設仮勘定
B136: 物品 | D136: =ROUND(D7*E136,0) -> 154690 | E136: 154690 | F136: =ROUND(F7*G136,0) -> 6899780 | G136: 6899780 | H136: =ROUND(H7*I136,0) -> 2516 | I136: 2516 | J136: =ROUND(J7*K136,0) -> 909 | K136: 909 | L136: =ROUND(L7*M136,0) -> 1686576 | M136: 1686576 | N136: =ROUND(N7*O136,0) -> 0 | P136: =ROUND(P7*Q136,0) -> 0 | R136: =ROUND(R7*S136,0) -> 0 | T136: =ROUND(T7*U136,0) -> 0 | V136: =ROUND(V7*W136,0) -> 0 | X136: =ROUND(X7*Y136,0) -> 0 | Z136: =ROUND(Z7*AA136,0) -> 0 | AB136: =ROUND(AB7*AC136,0) -> 0 | AD136: =ROUND(AD7*AE136,0) -> 0 | AF136: =ROUND(AF7*AG136,0) -> 0 | AH136: =ROUND(AH7*AI136,0) -> 0 | AJ136: =ROUND(AJ7*AK136,0) -> 0 | AL136: =ROUND(AL7*AM136,0) -> 0 | AN136: =ROUND(AN7*AO136,0) -> 0 | AP136: =ROUND(AP7*AQ136,0) -> 0 | AR136: 8744471
B137: 合計 | D137: =SUM(D120:D136) -> 1138141 | E137: 1138141 | F137: 27362348 | G137: 27362348 | H137: 431456 | I137: 431456 | J137: 909 | K137: 909 | L137: 1686576 | M137: 1686576 | N137: 0 | O137: 0 | P137: 0 | Q137: 0 | R137: 0 | S137: 0 | T137: 0 | U137: 0 | V137: 0 | W137: 0 | X137: =SUM(X120:X136) -> 0 | Y137: =SUM(Y120:Y136) -> 0 | Z137: =SUM(Z120:Z136) -> 0 | AA137: 0 | AB137: 0 | AC137: 0 | AD137: 0 | AE137: 0 | AF137: 0 | AG137: 0 | AH137: 0 | AI137: =SUM(AI120:AI136) -> 0 | AJ137: 0 | AK137: 0 | AL137: 0 | AM137: 0 | AN137: 0 | AO137: =SUM(AO120:AO136) -> 0 | AP137: 0 | AQ137: =SUM(AQ120:AQ136) -> 0 | AR137: 30619430
G138: 27362348
B139: 差引本年度末残高（Ｇ）
B140: 区分 | D140: 連結(比例) | E140: 連結(比例) | F140: 連結(比例) | G140: 連結(全部) | H140: 連結(比例) | I140: 連結(全部) | J140: 連結(比例) | K140: 連結(全部) | L140: 連結(比例) | M140: 連結(全部) | N140: 連結(比例) | O140: 連結(全部) | P140: 連結(比例) | Q140: 連結(全部) | R140: 連結(比例) | S140: 連結(全部) | T140: 連結(比例) | U140: 連結(全部) | V140: 連結(比例) | W140: 連結(全部) | X140: 連結(比例) | Y140: 連結(比例) | Z140: 連結(比例) | AA140: 連結(全部) | AB140: 連結(比例) | AC140: 連結(全部) | AD140: 連結(比例) | AE140: 連結(全部) | AF140: 連結(比例) | AG140: 連結(全部) | AH140: 連結(比例) | AI140: 連結(全部) | AJ140: 連結(比例) | AK140: 連結(全部) | AL140: 連結(比例) | AM140: 連結(全部) | AN140: 連結(比例) | AO140: 連結(全部) | AP140: 連結(比例) | AQ140: 連結(全部) | AR140: 連結会計 計
B141: 名称 | D141: =D9 -> 島前町村組合 | F141: =F9 -> 隠岐広域連合 | H141: =H9 -> 総合事務組合 | J141: =J9 -> 後期高齢 | L141: =L9 -> 知夫里島 | N141: =N9 -> 0 | P141: =P9 -> 0 | R141: =R9 -> 0 | T141: =T9 -> 0 | V141: =V9 -> 0 | X141: =X9 -> 0 | Z141: =Z9 -> 0 | AB141: =AB9 -> 0 | AD141: =AD9 -> 0 | AF141: =AF9 -> 0 | AH141: =AH9 -> 0 | AJ141: =AJ9 -> 0 | AL141: =AL9 -> 0 | AN141: =AN9 -> 0 | AP141: =AP9 -> 0
B142: 事業用資産
B143: 土地 | D143: =D77-D99 -> 0 | E143: 0 | F143: 20983903 | G143: 20983903 | H143: 3649094 | I143: 3649094 | J143: 0 | K143: 0 | L143: 0 | M143: 0 | N143: 0 | O143: 0 | P143: 0 | Q143: 0 | R143: 0 | S143: 0 | T143: 0 | U143: 0 | V143: 0 | W143: 0 | X143: =X77-X99 -> 0 | Y143: 0 | Z143: =Z77-Z99 -> 0 | AA143: 0 | AB143: 0 | AC143: 0 | AD143: 0 | AE143: 0 | AF143: 0 | AG143: 0 | AH143: 0 | AI143: 0 | AJ143: 0 | AK143: 0 | AL143: =AL77-AL99 -> 0 | AM143: =AM77-AM99 -> 0 | AN143: 0 | AO143: =AO77-AO99 -> 0 | AP143: 0 | AQ143: 0 | AR143: =D143+F143+H143+J143+L143+N143+P143+R143+T143+V143+X143+Z143+AB143+AD143+AF143+AH143+AJ143+AL143+AN143+AP143 -> 24632997
B144: 立木竹 | D144: =D78-D100 -> 0 | E144: 0 | F144: 0 | G144: 0 | H144: 0 | I144: 0 | J144: 0 | K144: 0 | L144: 0 | M144: 0 | N144: 0 | O144: 0 | P144: 0 | Q144: 0 | R144: 0 | S144: 0 | T144: 0 | U144: 0 | V144: 0 | W144: 0 | X144: =X78-X100 -> 0 | Y144: 0 | Z144: 0 | AA144: 0 | AB144: 0 | AC144: 0 | AD144: 0 | AE144: 0 | AF144: 0 | AG144: 0 | AH144: 0 | AI144: 0 | AJ144: 0 | AK144: 0 | AL144: =AL78-AL100 -> 0 | AM144: =AM78-AM100 -> 0 | AN144: 0 | AO144: =AO78-AO100 -> 0 | AP144: 0 | AQ144: 0 | AR144: 0
B145: 建物 | D145: =D79-D101 -> 0 | E145: 0 | F145: 109545953 | G145: 109545953 | H145: 10115828 | I145: 10115828 | J145: 0 | K145: 0 | L145: 0 | M145: 0 | N145: 0 | O145: 0 | P145: 0 | Q145: 0 | R145: 0 | S145: 0 | T145: 0 | U145: 0 | V145: 0 | W145: 0 | X145: =X79-X101 -> 0 | Y145: 0 | Z145: 0 | AA145: 0 | AB145: 0 | AC145: 0 | AD145: 0 | AE145: 0 | AF145: 0 | AG145: 0 | AH145: 0 | AI145: 0 | AJ145: 0 | AK145: 0 | AL145: =AL79-AL101 -> 0 | AM145: =AM79-AM101 -> 0 | AN145: 0 | AO145: =AO79-AO101 -> 0 | AP145: 0 | AQ145: 0 | AR145: 119661781
B146: 工作物 | D146: =D80-D102 -> 0 | E146: 0 | F146: 4846184 | G146: 4846184 | H146: 0 | I146: 0 | J146: 0 | K146: 0 | L146: 0 | M146: 0 | N146: 0 | O146: 0 | P146: 0 | Q146: 0 | R146: 0 | S146: 0 | T146: 0 | U146: 0 | V146: 0 | W146: 0 | X146: =X80-X102 -> 0 | Y146: 0 | Z146: 0 | AA146: 0 | AB146: 0 | AC146: 0 | AD146: 0 | AE146: 0 | AF146: 0 | AG146: 0 | AH146: 0 | AI146: 0 | AJ146: 0 | AK146: 0 | AL146: =AL80-AL102 -> 0 | AM146: =AM80-AM102 -> 0 | AN146: 0 | AO146: =AO80-AO102 -> 0 | AP146: 0 | AQ146: 0 | AR146: 4846184
B147: 船舶 | D147: =D81-D103 -> 18403700 | E147: 18403700 | F147: 6184500 | G147: 6184500 | H147: 0 | I147: 0 | J147: 0 | K147: 0 | L147: 0 | M147: 0 | N147: 0 | O147: 0 | P147: 0 | Q147: 0 | R147: 0 | S147: 0 | T147: 0 | U147: 0 | V147: 0 | W147: 0 | X147: =X81-X103 -> 0 | Y147: 0 | Z147: 0 | AA147: 0 | AB147: 0 | AC147: 0 | AD147: 0 | AE147: 0 | AF147: 0 | AG147: 0 | AH147: 0 | AI147: 0 | AJ147: 0 | AK147: 0 | AL147: =AL81-AL103 -> 0 | AM147: =AM81-AM103 -> 0 | AN147: 0 | AO147: =AO81-AO103 -> 0 | AP147: 0 | AQ147: 0 | AR147: 24588200
B148: 浮標等 | D148: =D82-D104 -> 0 | E148: 0 | F148: 0 | G148: 0 | H148: 0 | I148: 0 | J148: 0 | K148: 0 | L148: 0 | M148: 0 | N148: 0 | O148: 0 | P148: 0 | Q148: 0 | R148: 0 | S148: 0 | T148: 0 | U148: 0 | V148: 0 | W148: 0 | X148: =X82-X104 -> 0 | Y148: 0 | Z148: 0 | AA148: 0 | AB148: 0 | AC148: 0 | AD148: 0 | AE148: 0 | AF148: 0 | AG148: 0 | AH148: 0 | AI148: 0 | AJ148: 0 | AK148: 0 | AL148: =AL82-AL104 -> 0 | AM148: =AM82-AM104 -> 0 | AN148: 0 | AO148: =AO82-AO104 -> 0 | AP148: 0 | AQ148: 0 | AR148: 0
B149: 航空機 | D149: =D83-D105 -> 0 | E149: 0 | F149: 0 | G149: 0 | H149: 0 | I149: 0 | J149: 0 | K149: 0 | L149: 0 | M149: 0 | N149: 0 | O149: 0 | P149: 0 | Q149: 0 | R149: 0 | S149: 0 | T149: 0 | U149: 0 | V149: 0 | W149: 0 | X149: =X83-X105 -> 0 | Y149: 0 | Z149: 0 | AA149: 0 | AB149: 0 | AC149: 0 | AD149: 0 | AE149: 0 | AF149: 0 | AG149: 0 | AH149: 0 | AI149: 0 | AJ149: 0 | AK149: 0 | AL149: =AL83-AL105 -> 0 | AM149: =AM83-AM105 -> 0 | AN149: 0 | AO149: =AO83-AO105 -> 0 | AP149: 0 | AQ149: 0 | AR149: 0
B150: その他 | D150: =D84-D106 -> 0 | E150: 0 | F150: 0 | G150: 0 | H150: 0 | I150: 0 | J150: 0 | K150: 0 | L150: 0 | M150: 0 | N150: 0 | O150: 0 | P150: 0 | Q150: 0 | R150: 0 | S150: 0 | T150: 0 | U150: 0 | V150: 0 | W150: 0 | X150: =X84-X106 -> 0 | Y150: 0 | Z150: 0 | AA150: 0 | AB150: 0 | AC150: 0 | AD150: 0 | AE150: 0 | AF150: 0 | AG150: 0 | AH150: 0 | AI150: 0 | AJ150: 0 | AK150: 0 | AL150: =AL84-AL106 -> 0 | AM150: =AM84-AM106 -> 0 | AN150: 0 | AO150: =AO84-AO106 -> 0 | AP150: 0 | AQ150: 0 | AR150: 0
B151: 建設仮勘定 | D151: =D85-D107 -> 0 | E151: 0 | F151: 0 | G151: 0 | H151: 0 | I151: 0 | J151: 0 | K151: 0 | L151: 0 | M151: 0 | N151: 0 | O151: 0 | P151: 0 | Q151: 0 | R151: 0 | S151: 0 | T151: 0 | U151: 0 | V151: 0 | W151: 0 | X151: =X85-X107 -> 0 | Y151: 0 | Z151: 0 | AA151: 0 | AB151: 0 | AC151: 0 | AD151: 0 | AE151: 0 | AF151: 0 | AG151: 0 | AH151: 0 | AI151: 0 | AJ151: 0 | AK151: 0 | AL151: =AL85-AL107 -> 0 | AM151: =AM85-AM107 -> 0 | AN151: 0 | AO151: =AO85-AO107 -> 0 | AP151: 0 | AQ151: 0 | AR151: 0
B152: インフラ資産
B153: 土地 | D153: =D87-D109 -> 0 | E153: 0 | F153: 0 | G153: 0 | H153: 0 | I153: 0 | J153: 0 | K153: 0 | L153: 0 | M153: 0 | N153: 0 | O153: 0 | P153: 0 | Q153: 0 | R153: 0 | S153: 0 | T153: 0 | U153: 0 | V153: 0 | W153: 0 | X153: =X87-X109 -> 0 | Y153: 0 | Z153: =Z87-Z109 -> 0 | AA153: 0 | AB153: 0 | AC153: 0 | AD153: 0 | AE153: 0 | AF153: 0 | AG153: 0 | AH153: 0 | AI153: 0 | AJ153: 0 | AK153: 0 | AL153: =AL87-AL109 -> 0 | AM153: =AM87-AM109 -> 0 | AN153: 0 | AO153: =AO87-AO109 -> 0 | AP153: 0 | AQ153: 0 | AR153: =D153+F153+H153+J153+L153+N153+P153+R153+T153+V153+X153+Z153+AB153+AD153+AF153+AH153+AJ153+AL153+AN153+AP153 -> 0
B154: 建物 | D154: =D88-D110 -> 0 | E154: 0 | F154: 0 | G154: 0 | H154: 0 | I154: 0 | J154: 0 | K154: 0 | L154: 0 | M154: 0 | N154: 0 | O154: 0 | P154: 0 | Q154: 0 | R154: 0 | S154: 0 | T154: 0 | U154: 0 | V154: 0 | W154: 0 | X154: =X88-X110 -> 0 | Y154: 0 | Z154: 0 | AA154: 0 | AB154: 0 | AC154: 0 | AD154: 0 | AE154: 0 | AF154: 0 | AG154: 0 | AH154: 0 | AI154: 0 | AJ154: 0 | AK154: 0 | AL154: =AL88-AL110 -> 0 | AM154: =AM88-AM110 -> 0 | AN154: 0 | AO154: =AO88-AO110 -> 0 | AP154: 0 | AQ154: 0 | AR154: 0
B155: 工作物 | D155: =D89-D111 -> 0 | E155: 0 | F155: 0 | G155: 0 | H155: 0 | I155: 0 | J155: 0 | K155: 0 | L155: 0 | M155: 0 | N155: 0 | O155: 0 | P155: 0 | Q155: 0 | R155: 0 | S155: 0 | T155: 0 | U155: 0 | V155: 0 | W155: 0 | X155: =X89-X111 -> 0 | Y155: 0 | Z155: 0 | AA155: 0 | AB155: 0 | AC155: 0 | AD155: 0 | AE155: 0 | AF155: 0 | AG155: 0 | AH155: 0 | AI155: 0 | AJ155: 0 | AK155: 0 | AL155: =AL89-AL111 -> 0 | AM155: =AM89-AM111 -> 0 | AN155: 0 | AO155: =AO89-AO111 -> 0 | AP155: 0 | AQ155: 0 | AR155: 0
B156: その他 | D156: =D90-D112 -> 0 | E156: 0 | F156: 0 | G156: 0 | H156: 0 | I156: 0 | J156: 0 | K156: 0 | L156: 0 | M156: 0 | N156: 0 | O156: 0 | P156: 0 | Q156: 0 | R156: 0 | S156: 0 | T156: 0 | U156: 0 | V156: 0 | W156: 0 | X156: =X90-X112 -> 0 | Y156: 0 | Z156: 0 | AA156: 0 | AB156: 0 | AC156: 0 | AD156: 0 | AE156: 0 | AF156: 0 | AG156: 0 | AH156: 0 | AI156: 0 | AJ156: 0 | AK156: 0 | AL156: =AL90-AL112 -> 0 | AM156: =AM90-AM112 -> 0 | AN156: 0 | AO156: =AO90-AO112 -> 0 | AP156: 0 | AQ156: 0 | AR156: 0
B157: 建設仮勘定 | D157: =D91-D113 -> 0 | E157: 0 | F157: 0 | G157: 0 | H157: 0 | I157: 0 | J157: 0 | K157: 0 | L157: 0 | M157: 0 | N157: 0 | O157: 0 | P157: 0 | Q157: 0 | R157: 0 | S157: 0 | T157: 0 | U157: 0 | V157: 0 | W157: 0 | X157: =X91-X113 -> 0 | Y157: 0 | Z157: 0 | AA157: 0 | AB157: 0 | AC157: 0 | AD157: 0 | AE157: 0 | AF157: 0 | AG157: 0 | AH157: 0 | AI157: 0 | AJ157: 0 | AK157: 0 | AL157: =AL91-AL113 -> 0 | AM157: =AM91-AM113 -> 0 | AN157: 0 | AO157: =AO91-AO113 -> 0 | AP157: 0 | AQ157: 0 | AR157: 0
B158: 物品 | D158: =D92-D114 -> 618762 | E158: 618762 | F158: 28236402 | G158: 28236402 | H158: 1898 | I158: 1898 | J158: 909 | K158: 909 | L158: 3009061 | M158: 3009061 | N158: 0 | O158: 0 | P158: 0 | Q158: 0 | R158: 0 | S158: 0 | T158: 0 | U158: 0 | V158: 0 | W158: 0 | X158: =X92-X114 -> 0 | Y158: 0 | Z158: 0 | AA158: 0 | AB158: 0 | AC158: 0 | AD158: 0 | AE158: 0 | AF158: 0 | AG158: 0 | AH158: 0 | AI158: 0 | AJ158: 0 | AK158: 0 | AL158: =AL92-AL114 -> 0 | AM158: =AM92-AM114 -> 0 | AN158: 0 | AO158: =AO92-AO114 -> 0 | AP158: 0 | AQ158: 0 | AR158: 31867032
B159: 合計 | D159: =SUM(D142:D158) -> 19022462 | E159: 19022462 | F159: 169796942 | G159: 169796942 | H159: 13766820 | I159: 13766820 | J159: 909 | K159: 909 | L159: 3009061 | M159: 3009061 | N159: 0 | O159: 0 | P159: 0 | Q159: 0 | R159: 0 | S159: 0 | T159: 0 | U159: 0 | V159: 0 | W159: 0 | X159: =SUM(X142:X158) -> 0 | Y159: =SUM(Y142:Y158) -> 0 | Z159: =SUM(Z142:Z158) -> 0 | AA159: 0 | AB159: 0 | AC159: 0 | AD159: 0 | AE159: 0 | AF159: 0 | AG159: 0 | AH159: 0 | AI159: =SUM(AI142:AI158) -> 0 | AJ159: 0 | AK159: 0 | AL159: 0 | AM159: 0 | AN159: 0 | AO159: =SUM(AO142:AO158) -> 0 | AP159: 0 | AQ159: =SUM(AQ142:AQ158) -> 0 | AR159: 205596194
